Workbook

Sheet Dateneingabe
A1: Dateneingabe
B3: Eingabefelder: | E3: xxx | G3: In diese Felder musst du betriebliche Daten eingeben!
E5: xxx | G5: Die hier enthaltenen Daten kannst du in betriebliche Werte verändern!
E7: xxx | G7: Hier kannst du die Kalkulation um betriebsspezifische Werte ergänzen!
B10: Produktionsverfahren | G10: Anzahl | J10: DB/VK | L10: Energie-Bedarf/-Ertrag | N10: Arbeitszeit in Akh
B11: DB | C11: - | D11: Milchverarbeitung | G11: 3 | H11: Stk. | J11: 1822 | L11: 20035 | N11: 195
B13: DB | C13: - | D13: Kalbinnen | G13: 1 | H13: =IF(D13="","",IF(B13="DB","Stk.","ha")) -> Stk. | J13: 443 | L13: 28296 | N13: 202.5
B15: DB | C15: - | D15: Milchkälbermast | G15: 2 | H15: =IF(D15="","",IF(B15="DB","Stk.","ha")) -> Stk. | J15: 331 | N15: 49
B17: DB | C17: - | D17: Schweinemast | G17: 15 | H17: =IF(D17="","",IF(B17="DB","Stk.","ha")) -> Stk. | J17: 17 | N17: 49
B19: DB | C19: - | D19: Kartoffel Ab-Hof | G19: 2 | H19: ha | J19: 1776 | N19: 230
B21: DB | C21: - | H21: =IF(D21="","",IF(B21="DB","Stk.","ha")) -> 
B23: DB | C23: - | H23: =IF(D23="","",IF(B23="DB","Stk.","ha")) -> 
B24: Produktionsverfahren | G24: Anzahl | J24: DB/VK | L24: Energie-Bedarf/-Ertrag | N24: Arbeitszeit in Akh
B25: VK | C25: - | D25: Feldfutterbau | G25: 0.5 | H25: =IF(D25="","",IF(B25="DB","Stk.","ha")) -> ha | J25: 1045 | L25: 53100 | N25: 62.4
B27: VK | C27: - | D27: mehrschn. Dauergl. | G27: 3 | H27: =IF(D27="","",IF(B27="DB","Stk.","ha")) -> ha | J27: 542 | L27: 33930 | N27: 52.2
B29: VK | C29: - | D29: einschn. Dauergl. | G29: 2 | H29: =IF(D29="","",IF(B29="DB","Stk.","ha")) -> ha | J29: 542 | L29: 18370 | N29: 45
B31: VK | C31: - | H31: =IF(D31="","",IF(B31="DB","Stk.","ha")) -> 
B33: VK | C33: - | H33: =IF(D33="","",IF(B33="DB","Stk.","ha")) -> 
B35: VK | C35: - | H35: =IF(D35="","",IF(B35="DB","Stk.","ha")) -> 
B37: VK | C37: - | D37: Sonstige Arbeiten | H37: =IF(D37="","",IF(B37="DB","Stk.","ha")) -> ha | N37: 150
B41: Maschinenringtätigkeit | G41: 655 | L41: Lebenshaltungs- kosten | N41: -16985
B48: Ausgleichszulage | G48: 2900 | L48: Kapitaldienst für bestehende Kredite | N48: -550
B50: GAP Prämien Bodennutzung | G50: 1260
B52: Tierprämien | G52: 950
B54: ÖPUL | G54: 1280
B61: Feste Kosten - IST-Organisation | G61: -9452
B64: Sozialeinkommen | G64: 4560 | L64: Afa für Gebäude | N64: 620
L65: und Maschinen, die während der Kreditlaufzeit nicht erneuert werden
B66: Nebeneinkommen | G66: 13460
A68: © Mag. Wolfgang Harasleben | O68: 2014.03.06.067

Sheet Berechnung
B1: Berechnung der betrieblichen Ausgangssituation über die Deckungsbeitragsrechnung
B3: Produktions-verfahren | C3: Anzahl: ha, Stk. | D3: Deckungsbeitrag (+) bzw. Variable Kosten (-) | F3: Ertrag (+) bzw Bedarf (-) an KStE oder MJ NEL | H3: Jahresarbeits- zeit in Akh
B4: verfahren | C4: ha;Stk | D4: bzw. VK (-) | F4: (-) an KStE oder NEL | H4: bedarf in AKh
D5: je ha; Stk. | E5: gesamt | F5: je ha; Stk. | G5: gesamt | H5: je ha; Stk | I5: gesamt
B6: =IF(Dateneingabe!D11="","",Dateneingabe!B11&" "&Dateneingabe!D11) -> DB Milchverarbeitung | C6: =IF(Dateneingabe!G11="","",Dateneingabe!G11) -> 3 | D6: =IF(Dateneingabe!J11="","",Dateneingabe!J11) -> 1822 | F6: =IF(Dateneingabe!L11="","",Dateneingabe!L11) -> 20035 | H6: =IF(Dateneingabe!N11="","",Dateneingabe!N11) -> 195
B7: =IF(Dateneingabe!D13="","",Dateneingabe!B13&" "&Dateneingabe!D13) -> DB Kalbinnen | C7: =IF(Dateneingabe!G13="","",Dateneingabe!G13) -> 1 | D7: =IF(Dateneingabe!J13="","",Dateneingabe!J13) -> 443 | F7: =IF(Dateneingabe!L13="","",Dateneingabe!L13) -> 28296 | H7: =IF(Dateneingabe!N13="","",Dateneingabe!N13) -> 202.5
B8: =IF(Dateneingabe!D15="","",Dateneingabe!B15&" "&Dateneingabe!D15) -> DB Milchkälbermast | C8: =IF(Dateneingabe!G15="","",Dateneingabe!G15) -> 2 | D8: =IF(Dateneingabe!J15="","",Dateneingabe!J15) -> 331 | F8: =IF(Dateneingabe!L15="","",Dateneingabe!L15) ->  | H8: =IF(Dateneingabe!N15="","",Dateneingabe!N15) -> 49
B9: =IF(Dateneingabe!D17="","",Dateneingabe!B17&" "&Dateneingabe!D17) -> DB Schweinemast | C9: =IF(Dateneingabe!G17="","",Dateneingabe!G17) -> 15 | D9: =IF(Dateneingabe!J17="","",Dateneingabe!J17) -> 17 | F9: =IF(Dateneingabe!L17="","",Dateneingabe!L17) ->  | H9: =IF(Dateneingabe!N17="","",Dateneingabe!N17) -> 49
B10: =IF(Dateneingabe!D19="","",Dateneingabe!B19&" "&Dateneingabe!D19) -> DB Kartoffel Ab-Hof | C10: =IF(Dateneingabe!G19="","",Dateneingabe!G19) -> 2 | D10: =IF(Dateneingabe!J19="","",Dateneingabe!J19) -> 1776 | F10: =IF(Dateneingabe!L19="","",Dateneingabe!L19) ->  | H10: =IF(Dateneingabe!N19="","",Dateneingabe!N19) -> 230
B11: =IF(Dateneingabe!D21="","",Dateneingabe!B21&" "&Dateneingabe!D21) ->  | C11: =IF(Dateneingabe!G21="","",Dateneingabe!G21) ->  | D11: =IF(Dateneingabe!J21="","",Dateneingabe!J21) ->  | F11: =IF(Dateneingabe!L21="","",Dateneingabe!L21) ->  | H11: =IF(Dateneingabe!N21="","",Dateneingabe!N21) -> 
B12: =IF(Dateneingabe!D23="","",Dateneingabe!B23&" "&Dateneingabe!D23) ->  | C12: =IF(Dateneingabe!G23="","",Dateneingabe!G23) ->  | D12: =IF(Dateneingabe!J23="","",Dateneingabe!J23) ->  | F12: =IF(Dateneingabe!L23="","",Dateneingabe!L23) ->  | H12: =IF(Dateneingabe!N23="","",Dateneingabe!N23) -> 
B13: =IF(Dateneingabe!D25="","",Dateneingabe!B25&" "&Dateneingabe!D25) -> VK Feldfutterbau | C13: =IF(Dateneingabe!G25="","",Dateneingabe!G25) -> 0.5 | D13: =IF(Dateneingabe!J25="","",Dateneingabe!J25) -> 1045 | F13: =IF(Dateneingabe!L25="","",Dateneingabe!L25) -> 53100 | H13: =IF(Dateneingabe!N25="","",Dateneingabe!N25) -> 62.4
B14: =IF(Dateneingabe!D27="","",Dateneingabe!B27&" "&Dateneingabe!D27) -> VK mehrschn. Dauergl. | C14: =IF(Dateneingabe!G27="","",Dateneingabe!G27) -> 3 | D14: =IF(Dateneingabe!J27="","",Dateneingabe!J27) -> 542 | F14: =IF(Dateneingabe!L27="","",Dateneingabe!L27) -> 33930 | H14: =IF(Dateneingabe!N27="","",Dateneingabe!N27) -> 52.2
B15: =IF(Dateneingabe!D29="","",Dateneingabe!B29&" "&Dateneingabe!D29) -> VK einschn. Dauergl. | C15: =IF(Dateneingabe!G29="","",Dateneingabe!G29) -> 2 | D15: =IF(Dateneingabe!J29="","",Dateneingabe!J29) -> 542 | F15: =IF(Dateneingabe!L29="","",Dateneingabe!L29) -> 18370 | H15: =IF(Dateneingabe!N29="","",Dateneingabe!N29) -> 45
B16: =IF(Dateneingabe!D31="","",Dateneingabe!B31&" "&Dateneingabe!D31) ->  | C16: =IF(Dateneingabe!G31="","",Dateneingabe!G31) ->  | D16: =IF(Dateneingabe!J31="","",Dateneingabe!J31) ->  | F16: =IF(Dateneingabe!L31="","",Dateneingabe!L31) ->  | H16: =IF(Dateneingabe!N31="","",Dateneingabe!N31) -> 
B17: =IF(Dateneingabe!D33="","",Dateneingabe!B33&" "&Dateneingabe!D33) ->  | C17: =IF(Dateneingabe!G33="","",Dateneingabe!G33) ->  | D17: =IF(Dateneingabe!J33="","",Dateneingabe!J33) ->  | F17: =IF(Dateneingabe!L33="","",Dateneingabe!L33) ->  | H17: =IF(Dateneingabe!N33="","",Dateneingabe!N33) -> 
B18: =IF(Dateneingabe!D35="","",Dateneingabe!B35&" "&Dateneingabe!D35) ->  | C18: =IF(Dateneingabe!G35="","",Dateneingabe!G35) ->  | D18: =IF(Dateneingabe!J35="","",Dateneingabe!J35) ->  | F18: =IF(Dateneingabe!L35="","",Dateneingabe!L35) ->  | H18: =IF(Dateneingabe!N35="","",Dateneingabe!N35) -> 
B19: =IF(Dateneingabe!D37="","",Dateneingabe!B37&" "&Dateneingabe!D37) -> VK Sonstige Arbeiten | C19: =IF(Dateneingabe!G37="","",Dateneingabe!G37) ->  | D19: =IF(Dateneingabe!J37="","",Dateneingabe!J37) ->  | F19: =IF(Dateneingabe!L37="","",Dateneingabe!L37) ->  | H19: =IF(Dateneingabe!N37="","",Dateneingabe!N37) -> 150
B20: Gesamt DB
B22: Sonstige betriebliche Erträge + | F22: Energie- und Arbeitszeitbilanz | J22: =ROUND(I22/2000,1) -> 0
B23: =IF(Dateneingabe!B41="","",Dateneingabe!B41) -> Maschinenringtätigkeit | E23: =IF(Dateneingabe!G41="","",Dateneingabe!G41) -> 655 | F23: +/- Ges. Energie | H23: Gesamt Akh
B24: =IF(Dateneingabe!B43="","",Dateneingabe!B43) ->  | E24: =IF(Dateneingabe!G43="","",Dateneingabe!G43) -> 
B25: =IF(Dateneingabe!B45="","",Dateneingabe!B45) ->  | E25: =IF(Dateneingabe!G45="","",Dateneingabe!G45) -> 
B26: Summe Sonstige Erträge
B28: Förderungen | D28: + | F28: Kapitaldienstgrenze
B29: =IF(Dateneingabe!B48="","",Dateneingabe!B48) -> Ausgleichszulage | E29: =IF(Dateneingabe!G48="","",Dateneingabe!G48) -> 2900 | F29: Gesamteinkommen | I29: =IF(E43="","noch leer",E43) -> noch leer | J29: =-I30 -> 16985
B30: =IF(Dateneingabe!B50="","",Dateneingabe!B50) -> GAP Prämien Bodennutzung | E30: 1540 | F30: Lebenshaltungskosten | I30: =IF(Dateneingabe!N41="","",Dateneingabe!N41) -> -16985
B31: =IF(Dateneingabe!B52="","",Dateneingabe!B52) -> Tierprämien | E31: =IF(Dateneingabe!G52="","",Dateneingabe!G52) -> 950 | F31: Kapitaldienst für bestehende Kredite | I31: =IF(Dateneingabe!N48="","",Dateneingabe!N48) -> -550 | J31: =-I31 -> 550
B32: =IF(Dateneingabe!B54="","",Dateneingabe!B54) -> ÖPUL | E32: =IF(Dateneingabe!G54="","",Dateneingabe!G54) -> 1280 | F32: Vorläufige Kapitaldienstgrenze
B33: =IF(Dateneingabe!B56="","",Dateneingabe!B56) ->  | E33: =IF(Dateneingabe!G56="","",Dateneingabe!G56) ->  | F33: Afa für Gebäude und Maschinen, die während der Kreditlaufzeit nicht erneuert werden müssen. | I33: =IF(Dateneingabe!N64="","",Dateneingabe!N64) -> 620
B34: =IF(Dateneingabe!B58="","",Dateneingabe!B58) ->  | E34: =IF(Dateneingabe!G58="","",Dateneingabe!G58) -> 
B35: SUMME FÖRDERUNGEN | F35: Kapitaldienstgrenze
B37: GDB einschl. Förd. und sonst. Erträge
B38: Feste Kosten bei IST-Organisation | E38: =IF(Dateneingabe!G61="","",Dateneingabe!G61) -> -9452
B39: LANDWIRTSCHAFTLICHES EINKOMMEN - Gesamt
B40: LANDWIRTSCHAFTLICHES EINKOMMEN - EK/Akh
B41: SOZIALEINKOMMEN | E41: =IF(Dateneingabe!G64="","",Dateneingabe!G64) -> 4560
B42: NEBEEINKOMMEN | E42: =IF(Dateneingabe!G66="","",Dateneingabe!G66) -> 13460
B43: GESAMTEINKOMMEN

Sheet Korrektur
A1: Korrekturblatt zur Deckungsbeitragsrechnung
A2: =IF(H70<D70,"Du musst zuerst alle Berechnungen durchführen, um das Ergebnis ansehen zu können!","") -> Du musst zuerst alle Berechnungen durchführen, um das Ergebnis ansehen zu können!
B3: unabhängige Ergebnisse
B5: abhängige Ergebnisse (werden wenn die Formel korrekt ist, als Folgefehler mit 0,5 Punkten bewertet)
D7: Ergebnis | F7: Formel- prüfung | H7: Deine Be-rechnung | I7: ="Fehler" -> Fehler | J7: Punkte
A8: 1. | B8: Deckungsbeitrag / Variable Kosten
B9: =IF(Berechnung!B6="","",Berechnung!B6) -> DB Milchverarbeitung | D9: =IF(Hilfe!$E6="","",Hilfe!$E6) -> 5466 | F9: - | H9: =IF(Berechnung!$E6="","",Berechnung!$E6) ->  | I9: =IF(AND(D9="",H9=""),"",IF(H9=D9,"Richtig!",IF(H9="","Fehlt","Falsch"))) -> Fehlt | J9: =IF(AND(D9="",H9=""),"",IF(I9="Richtig!",1,IF(I9="Formel: OK",0.5,IF(OR(I9="Falsch",I9="Fehlt"),0,"")))) -> 0 | K9: │ | L9: =IF(AND(D9="",H9=""),"",1) -> 1
B10: =IF(Berechnung!B7="","",Berechnung!B7) -> DB Kalbinnen | D10: =IF(Hilfe!$E7="","",Hilfe!$E7) -> 443 | F10: - | H10: =IF(Berechnung!$E7="","",Berechnung!$E7) ->  | I10: =IF(AND(D10="",H10=""),"",IF(H10=D10,"Richtig!",IF(H10="","Fehlt","Falsch"))) -> Fehlt | J10: =IF(AND(D10="",H10=""),"",IF(I10="Richtig!",1,IF(I10="Formel: OK",0.5,IF(OR(I10="Falsch",I10="Fehlt"),0,"")))) -> 0 | K10: │ | L10: =IF(AND(D10="",H10=""),"",1) -> 1
B11: =IF(Berechnung!B8="","",Berechnung!B8) -> DB Milchkälbermast | D11: =IF(Hilfe!$E8="","",Hilfe!$E8) -> 662 | F11: - | H11: =IF(Berechnung!$E8="","",Berechnung!$E8) ->  | I11: Fehlt | J11: 0 | K11: │ | L11: 1
B12: =IF(Berechnung!B9="","",Berechnung!B9) -> DB Schweinemast | D12: =IF(Hilfe!$E9="","",Hilfe!$E9) -> 255 | F12: - | H12: =IF(Berechnung!$E9="","",Berechnung!$E9) ->  | I12: Fehlt | J12: 0 | K12: │ | L12: 1
B13: =IF(Berechnung!B10="","",Berechnung!B10) -> DB Kartoffel Ab-Hof | D13: =IF(Hilfe!$E10="","",Hilfe!$E10) -> 3552 | F13: - | H13: =IF(Berechnung!$E10="","",Berechnung!$E10) ->  | I13: Fehlt | J13: 0 | K13: │ | L13: 1
B14: =IF(Berechnung!B11="","",Berechnung!B11) ->  | D14: =IF(Hilfe!$E11="","",Hilfe!$E11) ->  | F14: - | H14: =IF(Berechnung!$E11="","",Berechnung!$E11) ->  | K14: │
B15: =IF(Berechnung!B12="","",Berechnung!B12) ->  | D15: =IF(Hilfe!$E12="","",Hilfe!$E12) ->  | F15: - | H15: =IF(Berechnung!$E12="","",Berechnung!$E12) ->  | K15: │
B16: =IF(Berechnung!B13="","",Berechnung!B13) -> VK Feldfutterbau | D16: =IF(Hilfe!$E13="","",Hilfe!$E13) -> -522.5 | F16: - | H16: =IF(Berechnung!$E13="","",Berechnung!$E13) ->  | I16: Fehlt | J16: 0 | K16: │ | L16: 1
B17: =IF(Berechnung!B14="","",Berechnung!B14) -> VK mehrschn. Dauergl. | D17: =IF(Hilfe!$E14="","",Hilfe!$E14) -> -1626 | F17: - | H17: =IF(Berechnung!$E14="","",Berechnung!$E14) ->  | I17: Fehlt | J17: 0 | K17: │ | L17: 1
B18: =IF(Berechnung!B15="","",Berechnung!B15) -> VK einschn. Dauergl. | D18: =IF(Hilfe!$E15="","",Hilfe!$E15) -> -1084 | F18: - | H18: =IF(Berechnung!$E15="","",Berechnung!$E15) ->  | I18: Fehlt | J18: 0 | K18: │ | L18: 1
B19: =IF(Berechnung!B16="","",Berechnung!B16) ->  | D19: =IF(Hilfe!$E16="","",Hilfe!$E16) ->  | F19: - | H19: =IF(Berechnung!$E16="","",Berechnung!$E16) ->  | K19: │
B20: =IF(Berechnung!B17="","",Berechnung!B17) ->  | D20: =IF(Hilfe!$E17="","",Hilfe!$E17) ->  | F20: - | H20: =IF(Berechnung!$E17="","",Berechnung!$E17) ->  | K20: │
B21: =IF(Berechnung!B18="","",Berechnung!B18) ->  | D21: =IF(Hilfe!$E18="","",Hilfe!$E18) ->  | F21: - | H21: =IF(Berechnung!$E18="","",Berechnung!$E18) ->  | K21: │
B22: =IF(Berechnung!B19="","",Berechnung!B19) -> VK Sonstige Arbeiten | D22: =IF(Hilfe!$E19="","",Hilfe!$E19) ->  | F22: - | H22: =IF(Berechnung!$E19="","",Berechnung!$E19) ->  | K22: │
B23: =IF(Berechnung!B20="","",Berechnung!B20) -> Gesamt DB | D23: =IF(Hilfe!$E20="","",Hilfe!$E20) -> 7145.5 | F23: =IF(SUM(H9:H22)=0,"-",SUM(H9:H22)) -> - | H23: =IF(Berechnung!$E20="","",Berechnung!$E20) ->  | I23: =IF(B23="-","",IF(H23=D23,"Richtig!",IF(AND(D23<>H23,F23=H23),"Formel: OK",IF(H23="","Fehlt","Falsch")))) -> Fehlt | J23: =IF(B23="-","",IF(I23="Richtig!",1,IF(I23="Formel: OK",0.5,IF(OR(I23="Falsch",I23="Fehlt"),0,"")))) -> 0 | K23: │ | L23: 1
A25: 2. | B25: Ertrag / Bedarf MJ NEL
B26: =IF(Berechnung!B6="","",MID(Berechnung!B6,4,30)) -> Milchverarbeitung | D26: =IF(Hilfe!$G6="","",Hilfe!$G6) -> -60105 | F26: - | H26: =IF(Berechnung!$G6="","",Berechnung!$G6) ->  | I26: =IF(AND(D26="",H26=""),"",IF(H26=D26,"Richtig!",IF(H26="","Fehlt","Falsch"))) -> Fehlt | J26: =IF(AND(D26="",H26=""),"",IF(I26="Richtig!",1,IF(I26="Formel: OK",0.5,IF(OR(I26="Falsch",I26="Fehlt"),0,"")))) -> 0 | K26: │ | L26: =IF(AND(D26="",H26=""),"",1) -> 1
B27: =IF(Berechnung!B7="","",MID(Berechnung!B7,4,30)) -> Kalbinnen | D27: =IF(Hilfe!$G7="","",Hilfe!$G7) -> -28296 | F27: - | H27: =IF(Berechnung!$G7="","",Berechnung!$G7) ->  | I27: =IF(AND(D27="",H27=""),"",IF(H27=D27,"Richtig!",IF(H27="","Fehlt","Falsch"))) -> Fehlt | J27: =IF(AND(D27="",H27=""),"",IF(I27="Richtig!",1,IF(I27="Formel: OK",0.5,IF(OR(I27="Falsch",I27="Fehlt"),0,"")))) -> 0 | K27: │ | L27: =IF(AND(D27="",H27=""),"",1) -> 1
B28: =IF(Berechnung!B8="","",MID(Berechnung!B8,4,30)) -> Milchkälbermast | D28: =IF(Hilfe!$G8="","",Hilfe!$G8) ->  | F28: - | H28: =IF(Berechnung!$G8="","",Berechnung!$G8) ->  | K28: │
B29: =IF(Berechnung!B9="","",MID(Berechnung!B9,4,30)) -> Schweinemast | D29: =IF(Hilfe!$G9="","",Hilfe!$G9) ->  | F29: - | H29: =IF(Berechnung!$G9="","",Berechnung!$G9) ->  | K29: │
B30: =IF(Berechnung!B10="","",MID(Berechnung!B10,4,30)) -> Kartoffel Ab-Hof | D30: =IF(Hilfe!$G10="","",Hilfe!$G10) ->  | F30: - | H30: =IF(Berechnung!$G10="","",Berechnung!$G10) ->  | K30: │
B31: =IF(Berechnung!B11="","",MID(Berechnung!B11,4,30)) ->  | D31: =IF(Hilfe!$G11="","",Hilfe!$G11) ->  | F31: - | H31: =IF(Berechnung!$G11="","",Berechnung!$G11) ->  | K31: │
B32: =IF(Berechnung!B12="","",MID(Berechnung!B12,4,30)) ->  | D32: =IF(Hilfe!$G12="","",Hilfe!$G12) ->  | F32: - | H32: =IF(Berechnung!$G12="","",Berechnung!$G12) ->  | K32: │
B33: =IF(Berechnung!B13="","",MID(Berechnung!B13,4,30)) -> Feldfutterbau | D33: =IF(Hilfe!$G13="","",Hilfe!$G13) -> 26550 | F33: - | H33: =IF(Berechnung!$G13="","",Berechnung!$G13) ->  | I33: Fehlt | J33: 0 | K33: │ | L33: 1
B34: =IF(Berechnung!B14="","",MID(Berechnung!B14,4,30)) -> mehrschn. Dauergl. | D34: =IF(Hilfe!$G14="","",Hilfe!$G14) -> 101790 | F34: - | H34: =IF(Berechnung!$G14="","",Berechnung!$G14) ->  | I34: Fehlt | J34: 0 | K34: │ | L34: 1
B35: =IF(Berechnung!B15="","",MID(Berechnung!B15,4,30)) -> einschn. Dauergl. | D35: =IF(Hilfe!$G15="","",Hilfe!$G15) -> 36740 | F35: - | H35: =IF(Berechnung!$G15="","",Berechnung!$G15) ->  | I35: Fehlt | J35: 0 | K35: │ | L35: 1
B36: =IF(Berechnung!B16="","",MID(Berechnung!B16,4,30)) ->  | D36: =IF(Hilfe!$G16="","",Hilfe!$G16) ->  | F36: - | H36: =IF(Berechnung!$G16="","",Berechnung!$G16) ->  | K36: │
B37: =IF(Berechnung!B17="","",MID(Berechnung!B17,4,30)) ->  | D37: =IF(Hilfe!$G17="","",Hilfe!$G17) ->  | F37: - | H37: =IF(Berechnung!$G17="","",Berechnung!$G17) ->  | K37: │
B38: =IF(Berechnung!B18="","",MID(Berechnung!B18,4,30)) ->  | D38: =IF(Hilfe!$G18="","",Hilfe!$G18) ->  | F38: - | H38: =IF(Berechnung!$G18="","",Berechnung!$G18) ->  | K38: │
B39: =IF(Berechnung!B19="","",MID(Berechnung!B19,4,30)) -> Sonstige Arbeiten | D39: =IF(Hilfe!$G19="","",Hilfe!$G19) ->  | F39: - | H39: =IF(Berechnung!$G19="","",Berechnung!$G19) ->  | K39: │
B40: =IF(Berechnung!F23="","",Berechnung!F23) -> +/- Ges. Energie | D40: =IF(Hilfe!$G71="","",Hilfe!$G71) -> 76679 | F40: =IF(SUM(H26:H39)=0,"-",SUM(H26:H39)) -> - | H40: =IF(Berechnung!$G23="","",Berechnung!$G23) ->  | I40: =IF(B40="-","",IF(H40=D40,"Richtig!",IF(AND(D40<>H40,F40=H40),"Formel: OK",IF(H40="","Fehlt","Falsch")))) -> Fehlt | J40: =IF(B40="-","",IF(I40="Richtig!",1,IF(I40="Formel: OK",0.5,IF(OR(I40="Falsch",I40="Fehlt"),0,"")))) -> 0 | K40: │ | L40: 1
A42: 3. | B42: Jahresarbeitszeit
B43: =IF(Berechnung!B6="","",MID(Berechnung!B6,4,30)) -> Milchverarbeitung | D43: =IF(Hilfe!$I6="","",Hilfe!$I6) -> 585 | F43: - | H43: =IF(Berechnung!$I6="","",Berechnung!$I6) ->  | I43: =IF(AND(D43="",H43=""),"",IF(H43=D43,"Richtig!",IF(H43="","Fehlt","Falsch"))) -> Fehlt | J43: =IF(AND(D43="",H43=""),"",IF(I43="Richtig!",1,IF(I43="Formel: OK",0.5,IF(OR(I43="Falsch",I43="Fehlt"),0,"")))) -> 0 | K43: │ | L43: =IF(AND(D43="",H43=""),"",1) -> 1
B44: =IF(Berechnung!B7="","",MID(Berechnung!B7,4,30)) -> Kalbinnen | D44: =IF(Hilfe!$I7="","",Hilfe!$I7) -> 202.5 | F44: - | H44: =IF(Berechnung!$I7="","",Berechnung!$I7) ->  | I44: =IF(AND(D44="",H44=""),"",IF(H44=D44,"Richtig!",IF(H44="","Fehlt","Falsch"))) -> Fehlt | J44: =IF(AND(D44="",H44=""),"",IF(I44="Richtig!",1,IF(I44="Formel: OK",0.5,IF(OR(I44="Falsch",I44="Fehlt"),0,"")))) -> 0 | K44: │ | L44: =IF(AND(D44="",H44=""),"",1) -> 1
B45: =IF(Berechnung!B8="","",MID(Berechnung!B8,4,30)) -> Milchkälbermast | D45: =IF(Hilfe!$I8="","",Hilfe!$I8) -> 98 | F45: - | H45: =IF(Berechnung!$I8="","",Berechnung!$I8) ->  | I45: Fehlt | J45: 0 | K45: │ | L45: 1
B46: =IF(Berechnung!B9="","",MID(Berechnung!B9,4,30)) -> Schweinemast | D46: =IF(Hilfe!$I9="","",Hilfe!$I9) -> 735 | F46: - | H46: =IF(Berechnung!$I9="","",Berechnung!$I9) ->  | I46: Fehlt | J46: 0 | K46: │ | L46: 1
B47: =IF(Berechnung!B10="","",MID(Berechnung!B10,4,30)) -> Kartoffel Ab-Hof | D47: =IF(Hilfe!$I10="","",Hilfe!$I10) -> 460 | F47: - | H47: =IF(Berechnung!$I10="","",Berechnung!$I10) ->  | I47: Fehlt | J47: 0 | K47: │ | L47: 1
B48: =IF(Berechnung!B11="","",MID(Berechnung!B11,4,30)) ->  | D48: =IF(Hilfe!$I11="","",Hilfe!$I11) ->  | F48: - | H48: =IF(Berechnung!$I11="","",Berechnung!$I11) ->  | K48: │
B49: =IF(Berechnung!B12="","",MID(Berechnung!B12,4,30)) ->  | D49: =IF(Hilfe!$I12="","",Hilfe!$I12) ->  | F49: - | H49: =IF(Berechnung!$I12="","",Berechnung!$I12) ->  | K49: │
B50: =IF(Berechnung!B13="","",MID(Berechnung!B13,4,30)) -> Feldfutterbau | D50: =IF(Hilfe!$I13="","",Hilfe!$I13) -> 31.2 | F50: - | H50: =IF(Berechnung!$I13="","",Berechnung!$I13) ->  | I50: Fehlt | J50: 0 | K50: │ | L50: 1
B51: =IF(Berechnung!B14="","",MID(Berechnung!B14,4,30)) -> mehrschn. Dauergl. | D51: =IF(Hilfe!$I14="","",Hilfe!$I14) -> 156.6 | F51: - | H51: =IF(Berechnung!$I14="","",Berechnung!$I14) ->  | I51: Fehlt | J51: 0 | K51: │ | L51: 1
B52: =IF(Berechnung!B15="","",MID(Berechnung!B15,4,30)) -> einschn. Dauergl. | D52: =IF(Hilfe!$I15="","",Hilfe!$I15) -> 90 | F52: - | H52: =IF(Berechnung!$I15="","",Berechnung!$I15) ->  | I52: Fehlt | J52: 0 | K52: │ | L52: 1
B53: =IF(Berechnung!B16="","",MID(Berechnung!B16,4,30)) ->  | D53: =IF(Hilfe!$I16="","",Hilfe!$I16) ->  | F53: - | H53: =IF(Berechnung!$I16="","",Berechnung!$I16) ->  | K53: │
B54: =IF(Berechnung!B17="","",MID(Berechnung!B17,4,30)) ->  | D54: =IF(Hilfe!$I17="","",Hilfe!$I17) ->  | F54: - | H54: =IF(Berechnung!$I17="","",Berechnung!$I17) ->  | K54: │
B55: =IF(Berechnung!B18="","",MID(Berechnung!B18,4,30)) ->  | D55: =IF(Hilfe!$I18="","",Hilfe!$I18) ->  | F55: - | H55: =IF(Berechnung!$I18="","",Berechnung!$I18) ->  | K55: │
B56: =IF(Berechnung!B19="","",MID(Berechnung!B19,4,30)) -> Sonstige Arbeiten | D56: =IF(Hilfe!$I19="","",Hilfe!$I19) -> 150 | F56: - | H56: =IF(Berechnung!$I19="","",Berechnung!$I19) ->  | I56: Fehlt | J56: 0 | K56: │ | L56: 1
B57: Gesamt Akh | D57: =IF(Hilfe!$I99="","",Hilfe!$I99) -> 2508.3 | F57: =IF(SUM(H43:H56)=0,"-",SUM(H43:H56)) -> - | H57: =IF(Berechnung!$I23="","",Berechnung!$I23) ->  | I57: =IF(B57="-","",IF(H57=D57,"Richtig!",IF(AND(D57<>H57,F57=H57),"Formel: OK",IF(H57="","Fehlt","Falsch")))) -> Fehlt | J57: =IF(B57="-","",IF(I57="Richtig!",1,IF(I57="Formel: OK",0.5,IF(OR(I57="Falsch",I57="Fehlt"),0,"")))) -> 0 | K57: │ | L57: 1
A59: 4. | B59: Einkommensermittlung
B60: =IF(Berechnung!B26="","",Berechnung!B26) -> Summe Sonstige Erträge | D60: =IF(Hilfe!$E111="","",Hilfe!$E111) -> 655 | F60: - | H60: =IF(Berechnung!$E26="","",Berechnung!$E26) ->  | I60: =IF(AND(D60="",H60=""),"",IF(H60=D60,"Richtig!",IF(H60="","Fehlt","Falsch"))) -> Fehlt | J60: =IF(AND(D60="",H60=""),"",IF(I60="Richtig!",1,IF(I60="Formel: OK",0.5,IF(OR(I60="Falsch",I60="Fehlt"),0,"")))) -> 0 | K60: │ | L60: =IF(AND(D60="",H60=""),"",1) -> 1
B61: =IF(Berechnung!B35="","",Berechnung!B35) -> SUMME FÖRDERUNGEN | D61: =IF(Hilfe!$E122="","",Hilfe!$E122) -> 6670 | F61: - | H61: =IF(Berechnung!$E35="","",Berechnung!$E35) ->  | I61: =IF(AND(D61="",H61=""),"",IF(H61=D61,"Richtig!",IF(H61="","Fehlt","Falsch"))) -> Fehlt | J61: =IF(AND(D61="",H61=""),"",IF(I61="Richtig!",1,IF(I61="Formel: OK",0.5,IF(OR(I61="Falsch",I61="Fehlt"),0,"")))) -> 0 | K61: │ | L61: =IF(AND(D61="",H61=""),"",1) -> 1
B62: =IF(Berechnung!B37="","",Berechnung!B37) -> GDB einschl. Förd. und sonst. Erträge | D62: =IF(Hilfe!$E124="","",Hilfe!$E124) -> 14470.5 | F62: =IF(SUM(H23,H60,H61)=0,"-",SUM(H23,H60,H61)) -> - | H62: =IF(Berechnung!$E37="","",Berechnung!$E37) ->  | I62: =IF(B62="-","",IF(H62=D62,"Richtig!",IF(AND(D62<>H62,F62=H62),"Formel: OK",IF(H62="","Fehlt","Falsch")))) -> Fehlt | J62: =IF(B62="-","",IF(I62="Richtig!",1,IF(I62="Formel: OK",0.5,IF(OR(I62="Falsch",I62="Fehlt"),0,"")))) -> 0 | K62: │ | L62: =IF(B62="-","",1) -> 1
B63: =IF(Berechnung!B39="","",Berechnung!B39) -> LANDWIRTSCHAFTLICHES EINKOMMEN - Gesamt | D63: =IF(Hilfe!$E126="","",Hilfe!$E126) -> 5018.5 | F63: =IF(OR(F62="-",Berechnung!E38=""),"-",SUM(F62,Berechnung!E38)) -> - | H63: =IF(Berechnung!$E39="","",Berechnung!$E39) ->  | I63: =IF(B63="-","",IF(H63=D63,"Richtig!",IF(AND(D63<>H63,F63=H63),"Formel: OK",IF(H63="","Fehlt","Falsch")))) -> Fehlt | J63: =IF(B63="-","",IF(I63="Richtig!",1,IF(I63="Formel: OK",0.5,IF(OR(I63="Falsch",I63="Fehlt"),0,"")))) -> 0 | K63: │ | L63: =IF(B63="-","",1) -> 1
B64: =IF(Berechnung!B40="","",Berechnung!B40) -> LANDWIRTSCHAFTLICHES EINKOMMEN - EK/Akh | D64: =IF(Hilfe!$E127="","",Hilfe!$E127) -> 2.000757485 | F64: =IF(OR(H63="",H57=""),"-",H63/H57) -> - | H64: =IF(Berechnung!$E40="","",Berechnung!$E40) ->  | I64: =IF(B64="-","",IF(H64=D64,"Richtig!",IF(AND(D64<>H64,F64=H64),"Formel: OK",IF(H64="","Fehlt","Falsch")))) -> Fehlt | J64: =IF(B64="-","",IF(I64="Richtig!",1,IF(I64="Formel: OK",0.5,IF(OR(I64="Falsch",I64="Fehlt"),0,"")))) -> 0 | K64: │ | L64: =IF(B64="-","",1) -> 1
B65: =IF(Berechnung!B43="","",Berechnung!B43) -> GESAMTEINKOMMEN | D65: =IF(Hilfe!$E130="","",Hilfe!$E130) -> 23038.5 | F65: =IF(OR(H63="",SUM(Berechnung!E41:E42)=0),"-",SUM(H63,Berechnung!E41:E42)) -> - | H65: =IF(Berechnung!$E43="","",Berechnung!$E43) ->  | I65: =IF(B65="-","",IF(H65=D65,"Richtig!",IF(AND(D65<>H65,F65=H65),"Formel: OK",IF(H65="","Fehlt","Falsch")))) -> Fehlt | J65: =IF(B65="-","",IF(I65="Richtig!",1,IF(I65="Formel: OK",0.5,IF(OR(I65="Falsch",I65="Fehlt"),0,"")))) -> 0 | K65: │ | L65: =IF(B65="-","",1) -> 1
A67: 5. | B67: Ermittlung der Kapitaldienstgrenze
B68: =IF(Berechnung!F32="","",Berechnung!F32) -> Vorläufige Kapitaldienstgrenze | D68: =IF(Hilfe!$I119="","",Hilfe!$I119) -> 5503.5 | F68: =IF(OR(H65="",SUM(Berechnung!I30:I31)=0),"-",SUM(H65,Berechnung!I30:I31)) -> - | H68: =IF(Berechnung!$I32="","",Berechnung!$I32) ->  | I68: =IF(B68="-","",IF(H68=D68,"Richtig!",IF(AND(D68<>H68,F68=H68),"Formel: OK",IF(H68="","Fehlt","Falsch")))) -> Fehlt | J68: =IF(AND(D68="",H68=""),"",IF(I68="Richtig!",1,IF(I68="Formel: OK",0.5,IF(OR(I68="Falsch",I68="Fehlt"),0,"")))) -> 0 | K68: │ | L68: =IF(AND(D68="",H68=""),"",1) -> 1
B69: =IF(Berechnung!F35="","",Berechnung!F35) -> Kapitaldienstgrenze | D69: =IF(Hilfe!$I122="","",Hilfe!$I122) -> 6123.5 | F69: =IF(OR(H68="",Berechnung!I33=""),"-",SUM(H68,Berechnung!I33)) -> - | H69: =IF(Berechnung!$I35="","",Berechnung!$I35) ->  | I69: =IF(B69="-","",IF(H69=D69,"Richtig!",IF(AND(D69<>H69,F69=H69),"Formel: OK",IF(H69="","Fehlt","Falsch")))) -> Fehlt | J69: =IF(AND(D69="",H69=""),"",IF(I69="Richtig!",1,IF(I69="Formel: OK",0.5,IF(OR(I69="Falsch",I69="Fehlt"),0,"")))) -> 0 | K69: │ | L69: =IF(AND(D69="",H69=""),"",1) -> 1
A70: Gesamtpunktezahl | D70: =COUNT(D9:D69) -> 33 | H70: =COUNT(H9:H69) -> 0 | J70: =SUM(J9:J69) -> 0 | K70: │ | L70: =SUM(L9:L69) -> 33
A73: Note | C73: =J70/L70 -> 0
B74: =C74-I78 -> 30 | C74: =L70 -> 33 | D74: =IF(AND(J70>=B74-0.5,J70<=C74),"u","j") -> j | E74: =IF(OR(J70=B74-0.5,J70=B74),"-","") -> 
B75: =C75-I78 -> 26 | C75: =B74-1 -> 29 | D75: =IF(AND(J70>=B75-0.5,J70<=C75),"v","k") -> k | E75: =IF(OR(J70=B75-0.5,J70=B75),"-",IF(OR(J70=C75-0.5,J70=C75),"+","")) -> 
B76: =C76-I78 -> 22 | C76: =B75-1 -> 25 | D76: =IF(AND(J70>=B76-0.5,J70<=C76),"w","l") -> l | E76: =IF(OR(J70=B76-0.5,J70=B76),"-",IF(OR(J70=C76-0.5,J70=C76),"+","")) -> 
B77: =C77-I78 -> 18 | C77: =B76-1 -> 21 | D77: =IF(AND(J70>=B77-0.5,J70<=C77),"x","m") -> m | E77: =IF(OR(J70=B77-0.5,J70=B77),"-",IF(OR(J70=C77-0.5,J70=C77),"+","")) ->  | G77: Abstufung: | I77: 0.1
B78: 0 | C78: =B77-1 -> 17 | D78: =IF(AND(J70>=B78-0.5,J70<=C78),"y","n") -> y | E78: =IF(OR(J70=C78-1,J70=C78-0.5,J70=C78),"+","") ->  | I78: =ROUND(L70*I77,0) -> 3

Sheet Hilfe
B1: Berechnung der betrieblichen Ausgangssituation über die Deckungsbeitragsrechnung | K1: Hilfe - Formeln, Rechenansätze und Ergebnisse | R1: Notizen | U1: Berechnung der betrieblichen Ausgangssituation über die Deckungsbeitragsrechnung | AD1: Hilfe - Formeln, Rechenansätze und Ergebnisse | AM1: Berechnung der betrieblichen Ausgangssituation über die Deckungsbeitragsrechnung | AV1: Hilfe - Formeln, Rechenansätze und Ergebnisse | BE1: Berechnung der betrieblichen Ausgangssituation über die Deckungsbeitragsrechnung | BN1: Hilfe - Formeln, Rechenansätze und Ergebnisse | BW1: Berechnung der betrieblichen Ausgangssituation über die Deckungsbeitragsrechnung | CF1: Hilfe - Formeln, Rechenansätze und Ergebnisse | CO1: Berechnung der betrieblichen Ausgangssituation über die Deckungsbeitragsrechnung | CX1: Hilfe - Formeln, Rechenansätze und Ergebnisse | DG1: Berechnung der betrieblichen Ausgangssituation über die Deckungsbeitragsrechnung | DP1: Hilfe - Formeln, Rechenansätze und Ergebnisse
B3: Produktions-verfahren | C3: Anzahl: ha, Stk. | D3: Deckungsbeitrag (+) / Variable Kosten (-) | F3: Ertrag (+) / Bedarf (-) an KStE oder MJ NEL | H3: Jahresarbeits- zeit in Akh | L3: Deckungsbeitrag / Variable Kosten gesamt | U3: Produktions-verfahren | V3: Anzahl: ha, Stk. | W3: Deckungsbeitrag (+) / Variable Kosten (-) | Y3: Ertrag (+) / Bedarf (-) an KStE oder MJ NEL | AA3: Jahresarbeits- zeit in Akh | AE3: Deckungsbeitrag / Variable Kosten gesamt | AM3: Produktions-verfahren | AN3: Anzahl: ha, Stk. | AO3: Deckungsbeitrag (+) / Variable Kosten (-) | AQ3: Ertrag (+) / Bedarf (-) an KStE oder MJ NEL | AS3: Jahresarbeits- zeit in Akh | AW3: Energieertrag / Energiebedarf gesamt | BE3: Produktions-verfahren | BF3: Anzahl: ha, Stk. | BG3: Deckungsbeitrag (+) / Variable Kosten (-) | BI3: Ertrag (+) / Bedarf (-) an KStE oder MJ NEL | BK3: Jahresarbeits- zeit in Akh | BO3: Arbeitszeit gesamt | BW3: Sonstige betriebliche Erträge + | CA3: Energie- und Arbeitszeitbilanz | CO3: Förderungen | CQ3: + | CS3: Kapitaldienstgrenze | CY3: Vorläufige Kapitaldienstgrenze | DC3: Excel: =SUMME(I29:I30) | DG3: GDB einschl. Förd. und sonst. Erträge | DJ3: =SUM(X20,BZ7,CR10) -> 14470.5 | DQ3: GDB einschl. Förd. Und sonst. Erträge | DU3: Excel: =SUMME(E20;E26;E35)
B4: verfahren | C4: ha;Stk | D4: bzw. VK (-) | F4: (-) an KStE oder NEL | H4: bedarf in AKh | L4: DB gesamt = DB je Stk. * Stk. | O4: … oder: DB gesamt = DB je ha * ha | U4: verfahren | V4: ha;Stk | W4: bzw. VK (-) | Y4: (-) an KStE oder NEL | AA4: bedarf in AKh | AE4: DB gesamt = DB je Stk. * Stk. | AH4: … oder: DB gesamt = DB je ha * ha | AM4: verfahren | AN4: ha;Stk | AO4: bzw. VK (-) | AQ4: (-) an KStE oder NEL | AS4: bedarf in AKh | AW4: Bedarf ges. = Bedarf je Stk * Stk. | BA4: … oder: Bedarf gesamt = Bedarf je ha * ha | BE4: verfahren | BF4: ha;Stk | BG4: bzw. VK (-) | BI4: (-) an KStE oder NEL | BK4: bedarf in AKh | BO4: AZ ges. = AZ je Stk * Stk. | BS4: … oder: AZ ges. = AZ je ha * ha | BW4: =IF(Dateneingabe!B41="","",Dateneingabe!B41) -> Maschinenringtätigkeit | BZ4: =IF(Dateneingabe!G41="","",Dateneingabe!G41) -> 655 | CA4: +/- Ges. Energie | CB4: =SUM(Z6:Z19) -> 76679 | CC4: Gesamt Akh | CD4: =SUM(AB6:AB19) -> 2508.3 | CO4: =IF(Dateneingabe!B48="","",Dateneingabe!B48) -> Ausgleichszulage | CR4: =IF(Dateneingabe!G48="","",Dateneingabe!G48) -> 2900 | CS4: Gesamteinkommen | CV4: =IF(E130="","noch leer",E130) -> 23038.5 | CY4: vorl. KDG = | DA4: =IF(CS4="","",CS4)&IF(CS5<>""," - ","")&IF(CS5="","",CS5)&IF(CS6<>""," - ","")&IF(CS6="","",CS6) -> Gesamteinkommen - Lebenshaltungskosten - Kapitaldienst für bestehende Kredite | DG4: Feste Kosten bei IST-Organisation | DJ4: =IF(Dateneingabe!G61="","",Dateneingabe!G61) -> -9452 | DQ4: GDB i.F.u.s.E. = | DS4: =IF(U20="","",U20)&IF(BW7<>""," + ","")&IF(BW7="","",BW7)&IF(CO10<>""," + ","")&IF(CO10="","",CO10) -> Gesamt DB + Summe Sonstige Erträge + SUMME FÖRDERUNGEN
D5: je ha; Stk. | E5: gesamt | F5: je ha; Stk. | G5: gesamt | H5: je ha; Stk | I5: gesamt | L5: VK gesamt = VK je ha * ha | W5: je ha; Stk. | X5: gesamt | Y5: je ha; Stk. | Z5: gesamt | AA5: je ha; Stk | AB5: gesamt | AE5: VK gesamt = VK je ha * ha | AO5: je ha; Stk. | AP5: gesamt | AQ5: je ha; Stk. | AR5: gesamt | AS5: je ha; Stk | AT5: gesamt | AW5: Ertrag ges. = Ertrag je ha * ha | BG5: je ha; Stk. | BH5: gesamt | BI5: je ha; Stk. | BJ5: gesamt | BK5: je ha; Stk | BL5: gesamt | BO5: Bsp.: | BP5: =IF(BE6="","",MID(BE6,4,20)) -> Milchverarbeitung | BR5: =IF(AND(BF6="",BK6=""),"",IF(AND(BF6="",BK6<>""),"AZ ges. = "&FIXED(BK6,2),"AZ ges. = "&FIXED(BF6,2)&" * "&FIXED(BK6,2)&" = "&FIXED(BF6*BK6,2))) -> AZ ges. = 3,00 * 195,00 = 585,00 | BW5: =IF(Dateneingabe!B43="","",Dateneingabe!B43) ->  | BZ5: =IF(Dateneingabe!G43="","",Dateneingabe!G43) ->  | CG5: Summe sonstiger Erträge | CK5: Excel: =SUMME(E23:E25) | CO5: =IF(Dateneingabe!B50="","",Dateneingabe!B50) -> GAP Prämien Bodennutzung | CR5: 1540 | CS5: Lebenshaltungskosten | CV5: =IF(Dateneingabe!N41="","",Dateneingabe!N41) -> -16985 | DG5: LANDWIRTSCHAFTLICHES EINKOMMEN - Gesamt | DJ5: =SUM(DJ3:DJ4) -> 5018.5
B6: =IF(Dateneingabe!D11="","",Dateneingabe!B11&" "&Dateneingabe!D11) -> DB Milchverarbeitung | C6: =IF(Dateneingabe!G11="","",Dateneingabe!G11) -> 3 | D6: =IF(Dateneingabe!J11="","",Dateneingabe!J11) -> 1822 | E6: =IF(OR(D6="",$C6=""),"",D6*$C6) -> 5466 | F6: =IF(Dateneingabe!L11="","",Dateneingabe!L11) -> 20035 | G6: =IF(OR(F6="",$C6=""),"",-F6*$C6) -> -60105 | H6: =IF(Dateneingabe!N11="","",Dateneingabe!N11) -> 195 | I6: =IF(AND(H6="",$C6=""),"",IF(AND(H6<>"",$C6=""),H6,H6*$C6)) -> 585 | L6: Bsp.: | M6: =IF(B6="","",MID(B6,4,20)) -> Milchverarbeitung | O6: =IF(OR(C6="",D6=""),"","DB ges. = "&FIXED(C6,2)&" * "&DOLLAR(D6,2)&" = "&DOLLAR(C6*D6,2)) -> DB ges. = 3,00 * € 1 822,00 = € 5 466,00 | U6: =IF(Dateneingabe!D11="","",Dateneingabe!B11&" "&Dateneingabe!D11) -> DB Milchverarbeitung | V6: =IF(Dateneingabe!G11="","",Dateneingabe!G11) -> 3 | W6: =IF(Dateneingabe!J11="","",Dateneingabe!J11) -> 1822 | X6: =IF(OR(W6="",$V6=""),"",W6*$V6) -> 5466 | Y6: =IF(Dateneingabe!L11="","",Dateneingabe!L11) -> 20035 | Z6: =IF(OR(Y6="",$V6=""),"",-Y6*$V6) -> -60105 | AA6: =IF(Dateneingabe!N11="","",Dateneingabe!N11) -> 195 | AB6: =IF(AND(AA6="",$V6=""),"",IF(AND(AA6<>"",$V6=""),AA6,AA6*$V6)) -> 585 | AE6: Bsp.: | AF6: =IF(U6="","",MID(U6,4,20)) -> Milchverarbeitung | AH6: =IF(OR(V6="",W6=""),"","DB ges. = "&FIXED(V6,2)&" * "&DOLLAR(W6,2)&" = "&DOLLAR(V6*W6,2)) -> DB ges. = 3,00 * € 1 822,00 = € 5 466,00 | AM6: =IF(Dateneingabe!D11="","",Dateneingabe!B11&" "&Dateneingabe!D11) -> DB Milchverarbeitung | AN6: =IF(Dateneingabe!G11="","",Dateneingabe!G11) -> 3 | AQ6: =IF(Dateneingabe!L11="","",Dateneingabe!L11) -> 20035 | AR6: =IF(OR(AQ6="",$AN6=""),"",-AQ6*$AN6) -> -60105 | AW6: Bsp.: | AX6: =IF(OR(AM6="",AQ6=""),"",MID(AM6,4,20)) -> Milchverarbeitung | AZ6: =IF(OR(AN6="",AQ6=""),"","Bedarf ges. = "&FIXED(AN6,2)&" * "&FIXED(-AQ6,2)&" = "&FIXED(-AN6*AQ6,2)) -> Bedarf ges. = 3,00 * -20 035,00 = -60 105,00 | BE6: =IF(Dateneingabe!D11="","",Dateneingabe!B11&" "&Dateneingabe!D11) -> DB Milchverarbeitung | BF6: =IF(Dateneingabe!G11="","",Dateneingabe!G11) -> 3 | BK6: =IF(Dateneingabe!N11="","",Dateneingabe!N11) -> 195 | BL6: =IF(AND(BF6="",$BK6=""),"",IF(AND(BF6="",$BK6<>""),BK6,BF6*$BK6)) -> 585 | BP6: Kalbinnen | BR6: AZ ges. = 1,00 * 202,50 = 202,50 | BW6: =IF(Dateneingabe!B45="","",Dateneingabe!B45) ->  | BZ6: =IF(Dateneingabe!G45="","",Dateneingabe!G45) ->  | CG6: ="∑ sonst. Erträge = "&IF(BW4="","",BW4)&IF(BW5<>""," + ","")&IF(BW5="","",BW5)&IF(BW6<>""," + ","")&IF(BW6="","",BW6) -> ∑ sonst. Erträge = Maschinenringtätigkeit | CO6: =IF(Dateneingabe!B52="","",Dateneingabe!B52) -> Tierprämien | CR6: =IF(Dateneingabe!G52="","",Dateneingabe!G52) -> 950 | CS6: Kapitaldienst für bestehende Kredite | CV6: =IF(Dateneingabe!N48="","",Dateneingabe!N48) -> -550 | CY6: =CY4 -> vorl. KDG = | DA6: =IF(CV4="","",DOLLAR(CV4,2))&IF(CV5<>""," - ","")&IF(CV5="","",DOLLAR(-CV5,2)&IF(CV6<>""," - ","")&IF(CV6="","",DOLLAR(-CV6,2))&" = "&DOLLAR(SUM(CV4:CV6),2)) -> € 23 038,50 - € 16 985,00 - € 550,00 = € 5 503,50 | DG6: LANDWIRTSCHAFTLICHES EINKOMMEN - EK/Akh | DJ6: =DJ5/CD4 -> 2.000757485 | DQ6: =DQ4 -> GDB i.F.u.s.E. = | DS6: =IF(X20="","",DOLLAR(X20,2))&IF(BZ7<>""," + ","")&IF(BZ7="","",DOLLAR(BZ7,2)&IF(CR10<>""," + ","")&IF(CR10="","",DOLLAR(CR10,2))&" = "&DOLLAR(SUM(X20,BZ7,CR10),2)) -> € 7 145,50 + € 655,00 + € 6 670,00 = € 14 470,50
B7: =IF(Dateneingabe!D13="","",Dateneingabe!B13&" "&Dateneingabe!D13) -> DB Kalbinnen | C7: =IF(Dateneingabe!G13="","",Dateneingabe!G13) -> 1 | D7: =IF(Dateneingabe!J13="","",Dateneingabe!J13) -> 443 | E7: =IF(OR(D7="",$C7=""),"",D7*$C7) -> 443 | F7: =IF(Dateneingabe!L13="","",Dateneingabe!L13) -> 28296 | G7: -28296 | H7: =IF(Dateneingabe!N13="","",Dateneingabe!N13) -> 202.5 | I7: 202.5 | M7: Kalbinnen | O7: DB ges. = 1,00 * € 443,00 = € 443,00 | U7: =IF(Dateneingabe!D13="","",Dateneingabe!B13&" "&Dateneingabe!D13) -> DB Kalbinnen | V7: =IF(Dateneingabe!G13="","",Dateneingabe!G13) -> 1 | W7: =IF(Dateneingabe!J13="","",Dateneingabe!J13) -> 443 | X7: 443 | Y7: =IF(Dateneingabe!L13="","",Dateneingabe!L13) -> 28296 | Z7: -28296 | AA7: =IF(Dateneingabe!N13="","",Dateneingabe!N13) -> 202.5 | AB7: 202.5 | AF7: Kalbinnen | AH7: DB ges. = 1,00 * € 443,00 = € 443,00 | AM7: =IF(Dateneingabe!D13="","",Dateneingabe!B13&" "&Dateneingabe!D13) -> DB Kalbinnen | AN7: =IF(Dateneingabe!G13="","",Dateneingabe!G13) -> 1 | AQ7: =IF(Dateneingabe!L13="","",Dateneingabe!L13) -> 28296 | AR7: =IF(OR(AQ7="",$AN7=""),"",-AQ7*$AN7) -> -28296 | AX7: Kalbinnen | AZ7: Bedarf ges. = 1,00 * -28 296,00 = -28 296,00 | BE7: =IF(Dateneingabe!D13="","",Dateneingabe!B13&" "&Dateneingabe!D13) -> DB Kalbinnen | BF7: =IF(Dateneingabe!G13="","",Dateneingabe!G13) -> 1 | BK7: =IF(Dateneingabe!N13="","",Dateneingabe!N13) -> 202.5 | BL7: 202.5 | BP7: Milchkälbermast | BR7: AZ ges. = 2,00 * 49,00 = 98,00 | BW7: Summe Sonstige Erträge | BZ7: =SUM(BZ4:BZ6) -> 655 | CG7: ="∑ sonst. Erträge = "&IF(BZ4="","",BZ4)&IF(BZ5<>""," + ","")&IF(BZ5="","",BZ5)&IF(BZ6<>""," + ","")&IF(BZ6="","",BZ6)&" = "&DOLLAR(SUM(BZ4:BZ6),2) -> ∑ sonst. Erträge = 655 = € 655,00 | CO7: =IF(Dateneingabe!B54="","",Dateneingabe!B54) -> ÖPUL | CR7: =IF(Dateneingabe!G54="","",Dateneingabe!G54) -> 1280 | CS7: Vorläufige Kapitaldienstgrenze | CV7: =SUM(CV4:CV6) -> 5503.5 | DG7: SOZIALEINKOMMEN | DJ7: =IF(Dateneingabe!G64="","",Dateneingabe!G64) -> 4560
B8: =IF(Dateneingabe!D15="","",Dateneingabe!B15&" "&Dateneingabe!D15) -> DB Milchkälbermast | C8: =IF(Dateneingabe!G15="","",Dateneingabe!G15) -> 2 | D8: =IF(Dateneingabe!J15="","",Dateneingabe!J15) -> 331 | E8: 662 | F8: =IF(Dateneingabe!L15="","",Dateneingabe!L15) ->  | H8: =IF(Dateneingabe!N15="","",Dateneingabe!N15) -> 49 | I8: 98 | M8: Milchkälbermast | O8: DB ges. = 2,00 * € 331,00 = € 662,00 | U8: =IF(Dateneingabe!D15="","",Dateneingabe!B15&" "&Dateneingabe!D15) -> DB Milchkälbermast | V8: =IF(Dateneingabe!G15="","",Dateneingabe!G15) -> 2 | W8: =IF(Dateneingabe!J15="","",Dateneingabe!J15) -> 331 | X8: 662 | Y8: =IF(Dateneingabe!L15="","",Dateneingabe!L15) ->  | AA8: =IF(Dateneingabe!N15="","",Dateneingabe!N15) -> 49 | AB8: 98 | AF8: Milchkälbermast | AH8: DB ges. = 2,00 * € 331,00 = € 662,00 | AM8: =IF(Dateneingabe!D15="","",Dateneingabe!B15&" "&Dateneingabe!D15) -> DB Milchkälbermast | AN8: =IF(Dateneingabe!G15="","",Dateneingabe!G15) -> 2 | AQ8: =IF(Dateneingabe!L15="","",Dateneingabe!L15) ->  | BE8: =IF(Dateneingabe!D15="","",Dateneingabe!B15&" "&Dateneingabe!D15) -> DB Milchkälbermast | BF8: =IF(Dateneingabe!G15="","",Dateneingabe!G15) -> 2 | BK8: =IF(Dateneingabe!N15="","",Dateneingabe!N15) -> 49 | BL8: 98 | BP8: Schweinemast | BR8: AZ ges. = 15,00 * 49,00 = 735,00 | CO8: =IF(Dateneingabe!B56="","",Dateneingabe!B56) ->  | CR8: =IF(Dateneingabe!G56="","",Dateneingabe!G56) ->  | CS8: Afa für Gebäude und Maschinen, die während der Kreditlaufzeit nicht erneuert werden müssen. | CV8: =IF(Dateneingabe!N64="","",Dateneingabe!N64) -> 620 | CY8: Kapitaldienstgrenze | DC8: Excel: =SUMME(I29:I30) | DG8: NEBEEINKOMMEN | DJ8: =IF(Dateneingabe!G66="","",Dateneingabe!G66) -> 13460 | DQ8: Landwirtschaftliches Einkommen - Gesamt | DU8: Excel: =SUMME(E37:E38)
B9: =IF(Dateneingabe!D17="","",Dateneingabe!B17&" "&Dateneingabe!D17) -> DB Schweinemast | C9: =IF(Dateneingabe!G17="","",Dateneingabe!G17) -> 15 | D9: =IF(Dateneingabe!J17="","",Dateneingabe!J17) -> 17 | E9: 255 | F9: =IF(Dateneingabe!L17="","",Dateneingabe!L17) ->  | H9: =IF(Dateneingabe!N17="","",Dateneingabe!N17) -> 49 | I9: 735 | M9: Schweinemast | O9: DB ges. = 15,00 * € 17,00 = € 255,00 | U9: =IF(Dateneingabe!D17="","",Dateneingabe!B17&" "&Dateneingabe!D17) -> DB Schweinemast | V9: =IF(Dateneingabe!G17="","",Dateneingabe!G17) -> 15 | W9: =IF(Dateneingabe!J17="","",Dateneingabe!J17) -> 17 | X9: 255 | Y9: =IF(Dateneingabe!L17="","",Dateneingabe!L17) ->  | AA9: =IF(Dateneingabe!N17="","",Dateneingabe!N17) -> 49 | AB9: 735 | AF9: Schweinemast | AH9: DB ges. = 15,00 * € 17,00 = € 255,00 | AM9: =IF(Dateneingabe!D17="","",Dateneingabe!B17&" "&Dateneingabe!D17) -> DB Schweinemast | AN9: =IF(Dateneingabe!G17="","",Dateneingabe!G17) -> 15 | AQ9: =IF(Dateneingabe!L17="","",Dateneingabe!L17) ->  | BE9: =IF(Dateneingabe!D17="","",Dateneingabe!B17&" "&Dateneingabe!D17) -> DB Schweinemast | BF9: =IF(Dateneingabe!G17="","",Dateneingabe!G17) -> 15 | BK9: =IF(Dateneingabe!N17="","",Dateneingabe!N17) -> 49 | BL9: 735 | BP9: Kartoffel Ab-Hof | BR9: AZ ges. = 2,00 * 230,00 = 460,00 | CO9: =IF(Dateneingabe!B58="","",Dateneingabe!B58) ->  | CR9: =IF(Dateneingabe!G58="","",Dateneingabe!G58) ->  | CY9: KDG = | DA9: =IF(CS7="","",CS7)&IF(CS8<>""," + ","")&IF(CS8="","",CS8) -> Vorläufige Kapitaldienstgrenze + Afa für Gebäude und Maschinen, die während der Kreditlaufzeit nicht erneuert werden müssen. | DG9: GESAMTEINKOMMEN | DJ9: =SUM(DJ5:DJ8) -> 23040.50076 | DQ9: Lw EK Ges. = | DS9: =IF(DG3="","",DG3)&IF(DG4<>""," - ","")&IF(DG4="","",DG4) -> GDB einschl. Förd. und sonst. Erträge - Feste Kosten bei IST-Organisation
B10: =IF(Dateneingabe!D19="","",Dateneingabe!B19&" "&Dateneingabe!D19) -> DB Kartoffel Ab-Hof | C10: =IF(Dateneingabe!G19="","",Dateneingabe!G19) -> 2 | D10: =IF(Dateneingabe!J19="","",Dateneingabe!J19) -> 1776 | E10: 3552 | F10: =IF(Dateneingabe!L19="","",Dateneingabe!L19) ->  | H10: =IF(Dateneingabe!N19="","",Dateneingabe!N19) -> 230 | I10: 460 | M10: Kartoffel Ab-Hof | O10: DB ges. = 2,00 * € 1 776,00 = € 3 552,00 | U10: =IF(Dateneingabe!D19="","",Dateneingabe!B19&" "&Dateneingabe!D19) -> DB Kartoffel Ab-Hof | V10: =IF(Dateneingabe!G19="","",Dateneingabe!G19) -> 2 | W10: =IF(Dateneingabe!J19="","",Dateneingabe!J19) -> 1776 | X10: 3552 | Y10: =IF(Dateneingabe!L19="","",Dateneingabe!L19) ->  | AA10: =IF(Dateneingabe!N19="","",Dateneingabe!N19) -> 230 | AB10: 460 | AF10: Kartoffel Ab-Hof | AH10: DB ges. = 2,00 * € 1 776,00 = € 3 552,00 | AM10: =IF(Dateneingabe!D19="","",Dateneingabe!B19&" "&Dateneingabe!D19) -> DB Kartoffel Ab-Hof | AN10: =IF(Dateneingabe!G19="","",Dateneingabe!G19) -> 2 | AQ10: =IF(Dateneingabe!L19="","",Dateneingabe!L19) ->  | BE10: =IF(Dateneingabe!D19="","",Dateneingabe!B19&" "&Dateneingabe!D19) -> DB Kartoffel Ab-Hof | BF10: =IF(Dateneingabe!G19="","",Dateneingabe!G19) -> 2 | BK10: =IF(Dateneingabe!N19="","",Dateneingabe!N19) -> 230 | BL10: 460 | CO10: SUMME FÖRDERUNGEN | CR10: =SUM(CR4:CR7) -> 6670 | CS10: Kapitaldienstgrenze | CV10: =SUM(CV7,CV8) -> 6123.5
B11: =IF(Dateneingabe!D21="","",Dateneingabe!B21&" "&Dateneingabe!D21) ->  | C11: =IF(Dateneingabe!G21="","",Dateneingabe!G21) ->  | D11: =IF(Dateneingabe!J21="","",Dateneingabe!J21) ->  | F11: =IF(Dateneingabe!L21="","",Dateneingabe!L21) ->  | H11: =IF(Dateneingabe!N21="","",Dateneingabe!N21) ->  | U11: =IF(Dateneingabe!D21="","",Dateneingabe!B21&" "&Dateneingabe!D21) ->  | V11: =IF(Dateneingabe!G21="","",Dateneingabe!G21) ->  | W11: =IF(Dateneingabe!J21="","",Dateneingabe!J21) ->  | Y11: =IF(Dateneingabe!L21="","",Dateneingabe!L21) ->  | AA11: =IF(Dateneingabe!N21="","",Dateneingabe!N21) ->  | AM11: =IF(Dateneingabe!D21="","",Dateneingabe!B21&" "&Dateneingabe!D21) ->  | AN11: =IF(Dateneingabe!G21="","",Dateneingabe!G21) ->  | AQ11: =IF(Dateneingabe!L21="","",Dateneingabe!L21) ->  | BE11: =IF(Dateneingabe!D21="","",Dateneingabe!B21&" "&Dateneingabe!D21) ->  | BF11: =IF(Dateneingabe!G21="","",Dateneingabe!G21) ->  | BK11: =IF(Dateneingabe!N21="","",Dateneingabe!N21) ->  | DQ11: =DQ9 -> Lw EK Ges. = | DS11: =IF(DJ3="","",DOLLAR(DJ3,2))&IF(DJ4<>""," - ","")&IF(DJ4="","",DOLLAR(-DJ4,2)&" = "&DOLLAR(SUM(DJ3,DJ4),2)) -> € 14 470,50 - € 9 452,00 = € 5 018,50
B12: =IF(Dateneingabe!D23="","",Dateneingabe!B23&" "&Dateneingabe!D23) ->  | C12: =IF(Dateneingabe!G23="","",Dateneingabe!G23) ->  | D12: =IF(Dateneingabe!J23="","",Dateneingabe!J23) ->  | F12: =IF(Dateneingabe!L23="","",Dateneingabe!L23) ->  | H12: =IF(Dateneingabe!N23="","",Dateneingabe!N23) ->  | U12: =IF(Dateneingabe!D23="","",Dateneingabe!B23&" "&Dateneingabe!D23) ->  | V12: =IF(Dateneingabe!G23="","",Dateneingabe!G23) ->  | W12: =IF(Dateneingabe!J23="","",Dateneingabe!J23) ->  | Y12: =IF(Dateneingabe!L23="","",Dateneingabe!L23) ->  | AA12: =IF(Dateneingabe!N23="","",Dateneingabe!N23) ->  | AM12: =IF(Dateneingabe!D23="","",Dateneingabe!B23&" "&Dateneingabe!D23) ->  | AN12: =IF(Dateneingabe!G23="","",Dateneingabe!G23) ->  | AQ12: =IF(Dateneingabe!L23="","",Dateneingabe!L23) ->  | BE12: =IF(Dateneingabe!D23="","",Dateneingabe!B23&" "&Dateneingabe!D23) ->  | BF12: =IF(Dateneingabe!G23="","",Dateneingabe!G23) ->  | BK12: =IF(Dateneingabe!N23="","",Dateneingabe!N23) ->  | BP12: Feldfutterbau | BR12: AZ ges. = 0,50 * 62,40 = 31,20 | CY12: =CY9 -> KDG = | DA12: =IF(CV7="","",DOLLAR(CV7,2))&IF(CV8<>""," + ","")&IF(CV8="","",DOLLAR(CV8,2)&" = "&DOLLAR(SUM(CV7:CV8),2)) -> € 5 503,50 + € 620,00 = € 6 123,50
B13: =IF(Dateneingabe!D25="","",Dateneingabe!B25&" "&Dateneingabe!D25) -> VK Feldfutterbau | C13: =IF(Dateneingabe!G25="","",Dateneingabe!G25) -> 0.5 | D13: =IF(Dateneingabe!J25="","",Dateneingabe!J25) -> 1045 | E13: =IF(OR(D13="",$C13=""),"",-D13*$C13) -> -522.5 | F13: =IF(Dateneingabe!L25="","",Dateneingabe!L25) -> 53100 | G13: =IF(OR(F13="",$C13=""),"",F13*$C13) -> 26550 | H13: =IF(Dateneingabe!N25="","",Dateneingabe!N25) -> 62.4 | I13: 31.2 | M13: Feldfutterbau | O13: =IF(OR(C13="",D13=""),"","VK ges. = "&FIXED(C13,2)&" * "&DOLLAR(-D13,2)&" = "&DOLLAR(-C13*D13,2)) -> VK ges. = 0,50 * -€ 1 045,00 = -€ 522,50 | U13: =IF(Dateneingabe!D25="","",Dateneingabe!B25&" "&Dateneingabe!D25) -> VK Feldfutterbau | V13: =IF(Dateneingabe!G25="","",Dateneingabe!G25) -> 0.5 | W13: =IF(Dateneingabe!J25="","",Dateneingabe!J25) -> 1045 | X13: =IF(OR(W13="",$V13=""),"",-W13*$V13) -> -522.5 | Y13: =IF(Dateneingabe!L25="","",Dateneingabe!L25) -> 53100 | Z13: =IF(OR(Y13="",$V13=""),"",Y13*$V13) -> 26550 | AA13: =IF(Dateneingabe!N25="","",Dateneingabe!N25) -> 62.4 | AB13: 31.2 | AF13: Feldfutterbau | AH13: =IF(OR(V13="",W13=""),"","VK ges. = "&FIXED(V13,2)&" * "&DOLLAR(-W13,2)&" = "&DOLLAR(-V13*W13,2)) -> VK ges. = 0,50 * -€ 1 045,00 = -€ 522,50 | AM13: =IF(Dateneingabe!D25="","",Dateneingabe!B25&" "&Dateneingabe!D25) -> VK Feldfutterbau | AN13: =IF(Dateneingabe!G25="","",Dateneingabe!G25) -> 0.5 | AQ13: =IF(Dateneingabe!L25="","",Dateneingabe!L25) -> 53100 | AR13: =IF(OR(AQ13="",$AN13=""),"",AQ13*$AN13) -> 26550 | AX13: Feldfutterbau | AZ13: =IF(OR(AN13="",AQ13=""),"","Ertrag ges. = "&FIXED(AN13,2)&" * "&FIXED(AQ13,2)&" = "&FIXED(AN13*AQ13,2)) -> Ertrag ges. = 0,50 * 53 100,00 = 26 550,00 | BE13: =IF(Dateneingabe!D25="","",Dateneingabe!B25&" "&Dateneingabe!D25) -> VK Feldfutterbau | BF13: =IF(Dateneingabe!G25="","",Dateneingabe!G25) -> 0.5 | BK13: =IF(Dateneingabe!N25="","",Dateneingabe!N25) -> 62.4 | BL13: 31.2 | BP13: mehrschn. Dauergl. | BR13: AZ ges. = 3,00 * 52,20 = 156,60 | DQ13: Landwirtschaftliches Einkommen/Akh | DU13: Excel: =SUMME(E39/I23)
B14: =IF(Dateneingabe!D27="","",Dateneingabe!B27&" "&Dateneingabe!D27) -> VK mehrschn. Dauergl. | C14: =IF(Dateneingabe!G27="","",Dateneingabe!G27) -> 3 | D14: =IF(Dateneingabe!J27="","",Dateneingabe!J27) -> 542 | E14: =IF(OR(D14="",$C14=""),"",-D14*$C14) -> -1626 | F14: =IF(Dateneingabe!L27="","",Dateneingabe!L27) -> 33930 | G14: 101790 | H14: =IF(Dateneingabe!N27="","",Dateneingabe!N27) -> 52.2 | I14: 156.6 | M14: mehrschn. Dauergl. | O14: =IF(OR(C14="",D14=""),"","VK ges. = "&FIXED(C14,2)&" * "&DOLLAR(-D14,2)&" = "&DOLLAR(-C14*D14,2)) -> VK ges. = 3,00 * -€ 542,00 = -€ 1 626,00 | U14: =IF(Dateneingabe!D27="","",Dateneingabe!B27&" "&Dateneingabe!D27) -> VK mehrschn. Dauergl. | V14: =IF(Dateneingabe!G27="","",Dateneingabe!G27) -> 3 | W14: =IF(Dateneingabe!J27="","",Dateneingabe!J27) -> 542 | X14: -1626 | Y14: =IF(Dateneingabe!L27="","",Dateneingabe!L27) -> 33930 | Z14: 101790 | AA14: =IF(Dateneingabe!N27="","",Dateneingabe!N27) -> 52.2 | AB14: 156.6 | AF14: mehrschn. Dauergl. | AH14: VK ges. = 3,00 * -€ 542,00 = -€ 1 626,00 | AM14: =IF(Dateneingabe!D27="","",Dateneingabe!B27&" "&Dateneingabe!D27) -> VK mehrschn. Dauergl. | AN14: =IF(Dateneingabe!G27="","",Dateneingabe!G27) -> 3 | AQ14: =IF(Dateneingabe!L27="","",Dateneingabe!L27) -> 33930 | AR14: 101790 | AX14: mehrschn. Dauergl. | AZ14: Ertrag ges. = 3,00 * 33 930,00 = 101 790,00 | BE14: =IF(Dateneingabe!D27="","",Dateneingabe!B27&" "&Dateneingabe!D27) -> VK mehrschn. Dauergl. | BF14: =IF(Dateneingabe!G27="","",Dateneingabe!G27) -> 3 | BK14: =IF(Dateneingabe!N27="","",Dateneingabe!N27) -> 52.2 | BL14: 156.6 | BP14: einschn. Dauergl. | BR14: AZ ges. = 2,00 * 45,00 = 90,00 | CY14: Summe Förderungen | DC14: Excel: =SUMME(E29:E34) | DQ14: Lw EK/AKh = | DS14: =MID(DQ9,1,10)& " : Akh" -> Lw EK Ges. : Akh
B15: =IF(Dateneingabe!D29="","",Dateneingabe!B29&" "&Dateneingabe!D29) -> VK einschn. Dauergl. | C15: =IF(Dateneingabe!G29="","",Dateneingabe!G29) -> 2 | D15: =IF(Dateneingabe!J29="","",Dateneingabe!J29) -> 542 | E15: -1084 | F15: =IF(Dateneingabe!L29="","",Dateneingabe!L29) -> 18370 | G15: 36740 | H15: =IF(Dateneingabe!N29="","",Dateneingabe!N29) -> 45 | I15: 90 | M15: einschn. Dauergl. | O15: VK ges. = 2,00 * -€ 542,00 = -€ 1 084,00 | U15: =IF(Dateneingabe!D29="","",Dateneingabe!B29&" "&Dateneingabe!D29) -> VK einschn. Dauergl. | V15: =IF(Dateneingabe!G29="","",Dateneingabe!G29) -> 2 | W15: =IF(Dateneingabe!J29="","",Dateneingabe!J29) -> 542 | X15: -1084 | Y15: =IF(Dateneingabe!L29="","",Dateneingabe!L29) -> 18370 | Z15: 36740 | AA15: =IF(Dateneingabe!N29="","",Dateneingabe!N29) -> 45 | AB15: 90 | AF15: einschn. Dauergl. | AH15: VK ges. = 2,00 * -€ 542,00 = -€ 1 084,00 | AM15: =IF(Dateneingabe!D29="","",Dateneingabe!B29&" "&Dateneingabe!D29) -> VK einschn. Dauergl. | AN15: =IF(Dateneingabe!G29="","",Dateneingabe!G29) -> 2 | AQ15: =IF(Dateneingabe!L29="","",Dateneingabe!L29) -> 18370 | AR15: 36740 | AX15: einschn. Dauergl. | AZ15: Ertrag ges. = 2,00 * 18 370,00 = 36 740,00 | BE15: =IF(Dateneingabe!D29="","",Dateneingabe!B29&" "&Dateneingabe!D29) -> VK einschn. Dauergl. | BF15: =IF(Dateneingabe!G29="","",Dateneingabe!G29) -> 2 | BK15: =IF(Dateneingabe!N29="","",Dateneingabe!N29) -> 45 | BL15: 90 | CY15: ∑ Förd. = | DA15: =IF(CO4="","",CO4)&IF(CO5<>""," + ","")&IF(CO5="","",CO5)&IF(CO6<>""," + ","")&IF(CO6="","",CO6)&IF(CO7<>""," + ","")&IF(CO7="","",CO7)&IF(CO8<>""," + ","")&IF(CO8="","",CO8)&IF(CO9<>""," + ","")&IF(CO9="","",CO9) -> Ausgleichszulage + GAP Prämien Bodennutzung + Tierprämien + ÖPUL | DQ15: =DQ14 -> Lw EK/AKh = | DS15: =IF(DJ5="","",DOLLAR(DJ5,2))&IF(CD4<>""," : ","")&IF(CD4="","",FIXED(CD4,2)&" AKh = "&DOLLAR(DJ5/CD4,2)) -> € 5 018,50 : 2 508,30 AKh = € 2,00
B16: =IF(Dateneingabe!D31="","",Dateneingabe!B31&" "&Dateneingabe!D31) ->  | C16: =IF(Dateneingabe!G31="","",Dateneingabe!G31) ->  | D16: =IF(Dateneingabe!J31="","",Dateneingabe!J31) ->  | F16: =IF(Dateneingabe!L31="","",Dateneingabe!L31) ->  | H16: =IF(Dateneingabe!N31="","",Dateneingabe!N31) ->  | U16: =IF(Dateneingabe!D31="","",Dateneingabe!B31&" "&Dateneingabe!D31) ->  | V16: =IF(Dateneingabe!G31="","",Dateneingabe!G31) ->  | W16: =IF(Dateneingabe!J31="","",Dateneingabe!J31) ->  | Y16: =IF(Dateneingabe!L31="","",Dateneingabe!L31) ->  | AA16: =IF(Dateneingabe!N31="","",Dateneingabe!N31) ->  | AM16: =IF(Dateneingabe!D31="","",Dateneingabe!B31&" "&Dateneingabe!D31) ->  | AN16: =IF(Dateneingabe!G31="","",Dateneingabe!G31) ->  | AQ16: =IF(Dateneingabe!L31="","",Dateneingabe!L31) ->  | BE16: =IF(Dateneingabe!D31="","",Dateneingabe!B31&" "&Dateneingabe!D31) ->  | BF16: =IF(Dateneingabe!G31="","",Dateneingabe!G31) ->  | BK16: =IF(Dateneingabe!N31="","",Dateneingabe!N31) -> 
B17: =IF(Dateneingabe!D33="","",Dateneingabe!B33&" "&Dateneingabe!D33) ->  | C17: =IF(Dateneingabe!G33="","",Dateneingabe!G33) ->  | D17: =IF(Dateneingabe!J33="","",Dateneingabe!J33) ->  | F17: =IF(Dateneingabe!L33="","",Dateneingabe!L33) ->  | H17: =IF(Dateneingabe!N33="","",Dateneingabe!N33) ->  | U17: =IF(Dateneingabe!D33="","",Dateneingabe!B33&" "&Dateneingabe!D33) ->  | V17: =IF(Dateneingabe!G33="","",Dateneingabe!G33) ->  | W17: =IF(Dateneingabe!J33="","",Dateneingabe!J33) ->  | Y17: =IF(Dateneingabe!L33="","",Dateneingabe!L33) ->  | AA17: =IF(Dateneingabe!N33="","",Dateneingabe!N33) ->  | AM17: =IF(Dateneingabe!D33="","",Dateneingabe!B33&" "&Dateneingabe!D33) ->  | AN17: =IF(Dateneingabe!G33="","",Dateneingabe!G33) ->  | AQ17: =IF(Dateneingabe!L33="","",Dateneingabe!L33) ->  | BE17: =IF(Dateneingabe!D33="","",Dateneingabe!B33&" "&Dateneingabe!D33) ->  | BF17: =IF(Dateneingabe!G33="","",Dateneingabe!G33) ->  | BK17: =IF(Dateneingabe!N33="","",Dateneingabe!N33) ->  | DQ17: Gesamteinkommen | DU17: Excel: =SUMME(E39;E41:E42)
B18: =IF(Dateneingabe!D35="","",Dateneingabe!B35&" "&Dateneingabe!D35) ->  | C18: =IF(Dateneingabe!G35="","",Dateneingabe!G35) ->  | D18: =IF(Dateneingabe!J35="","",Dateneingabe!J35) ->  | F18: =IF(Dateneingabe!L35="","",Dateneingabe!L35) ->  | H18: =IF(Dateneingabe!N35="","",Dateneingabe!N35) ->  | U18: =IF(Dateneingabe!D35="","",Dateneingabe!B35&" "&Dateneingabe!D35) ->  | V18: =IF(Dateneingabe!G35="","",Dateneingabe!G35) ->  | W18: =IF(Dateneingabe!J35="","",Dateneingabe!J35) ->  | Y18: =IF(Dateneingabe!L35="","",Dateneingabe!L35) ->  | AA18: =IF(Dateneingabe!N35="","",Dateneingabe!N35) ->  | AM18: =IF(Dateneingabe!D35="","",Dateneingabe!B35&" "&Dateneingabe!D35) ->  | AN18: =IF(Dateneingabe!G35="","",Dateneingabe!G35) ->  | AQ18: =IF(Dateneingabe!L35="","",Dateneingabe!L35) ->  | BE18: =IF(Dateneingabe!D35="","",Dateneingabe!B35&" "&Dateneingabe!D35) ->  | BF18: =IF(Dateneingabe!G35="","",Dateneingabe!G35) ->  | BK18: =IF(Dateneingabe!N35="","",Dateneingabe!N35) ->  | BP18: Sonstige Arbeiten | BR18: =IF(AND(BF19="",BK19=""),"",IF(AND(BF19="",BK19<>""),"AZ ges. = "&FIXED(BK19,2),"AZ ges. = "&FIXED(BF19,2)&" * "&FIXED(BK19,2)&" = "&FIXED(BF19*BK19,2))) -> AZ ges. = 150,00 | CY18: =CY15 -> ∑ Förd. = | DA18: =IF(CR4="","",DOLLAR(CR4,2))&IF(CR5<>""," + ","")&IF(CR5="","",DOLLAR(CR5,2))&IF(CR6<>""," + ","")&IF(CR6="","",DOLLAR(CR6,2))&IF(CR7<>""," + ","")&IF(CR7="","",DOLLAR(CR7,2))&IF(CR8<>""," + ","")&IF(CR8="","",DOLLAR(CR8,2))&IF(CR9<>""," + ","")&IF(CR9="","",DOLLAR(CR9,2))&" = "&DOLLAR(SUM(CR4:CR9),2) -> € 2 900,00 + € 1 540,00 + € 950,00 + € 1 280,00 = € 6 670,00 | DQ18: Ges-EK = | DS18: =IF(DG5="","",MID(DG5,1,30))&IF(DG7<>""," + ","")&IF(DG7="","",DG7)&IF(DG8<>""," + ","")&IF(DG8="","",DG8) -> LANDWIRTSCHAFTLICHES EINKOMMEN + SOZIALEINKOMMEN + NEBEEINKOMMEN
B19: =IF(Dateneingabe!D37="","",Dateneingabe!B37&" "&Dateneingabe!D37) -> VK Sonstige Arbeiten | C19: =IF(Dateneingabe!G37="","",Dateneingabe!G37) ->  | D19: =IF(Dateneingabe!J37="","",Dateneingabe!J37) ->  | F19: =IF(Dateneingabe!L37="","",Dateneingabe!L37) ->  | H19: =IF(Dateneingabe!N37="","",Dateneingabe!N37) -> 150 | I19: =IF(AND(H19="",$C19=""),"",IF(AND(H19<>"",$C19=""),H19,H19*$C19)) -> 150 | M19: Sonstige Arbeiten | U19: =IF(Dateneingabe!D37="","",Dateneingabe!B37&" "&Dateneingabe!D37) -> VK Sonstige Arbeiten | V19: =IF(Dateneingabe!G37="","",Dateneingabe!G37) ->  | W19: =IF(Dateneingabe!J37="","",Dateneingabe!J37) ->  | Y19: =IF(Dateneingabe!L37="","",Dateneingabe!L37) ->  | AA19: =IF(Dateneingabe!N37="","",Dateneingabe!N37) -> 150 | AB19: =IF(AND(AA19="",$V19=""),"",IF(AND(AA19<>"",$V19=""),AA19,AA19*$V19)) -> 150 | AF19: Sonstige Arbeiten | AM19: =IF(Dateneingabe!D37="","",Dateneingabe!B37&" "&Dateneingabe!D37) -> VK Sonstige Arbeiten | AN19: =IF(Dateneingabe!G37="","",Dateneingabe!G37) ->  | AQ19: =IF(Dateneingabe!L37="","",Dateneingabe!L37) ->  | BE19: =IF(Dateneingabe!D37="","",Dateneingabe!B37&" "&Dateneingabe!D37) -> VK Sonstige Arbeiten | BF19: =IF(Dateneingabe!G37="","",Dateneingabe!G37) ->  | BK19: =IF(Dateneingabe!N37="","",Dateneingabe!N37) -> 150 | BL19: =IF(AND(BF19="",$BK19=""),"",IF(AND(BF19="",$BK19<>""),BK19,BF19*$BK19)) -> 150
B20: Gesamt DB | E20: =IF(AND(E6="",E7="",E8="",E9="",E10="",E11="",E12="",E13="",E14="",E15="",E16="",E17="",E18="",E19="",),"",SUM(E6:E19)) -> 7145.5 | U20: Gesamt DB | X20: =IF(AND(X6="",X7="",X8="",X9="",X10="",X11="",X12="",X13="",X14="",X15="",X16="",X17="",X18="",X19="",),"",SUM(X6:X19)) -> 7145.5 | AM20: Gesamt DB | BE20: Gesa"Bedarf-"Mt DB | DQ20: =DQ18 -> Ges-EK = | DS20: =IF(DJ5="","",DOLLAR(DJ5,2))&IF(DJ7<>""," + ","")&IF(DJ7="","",DOLLAR(DJ7,2)&IF(DJ8<>""," + ","")&IF(DJ8="","",DOLLAR(DJ8,2)&" = "&DOLLAR(SUM(DJ5,DJ7,DJ8),2))) -> € 5 018,50 + € 4 560,00 + € 13 460,00 = € 23 038,50
L21: Summe DB
L22: Summe DB = | N22: =IF(B6="","",B6)&IF(B7<>""," + ","")&IF(B7="","",B7)&IF(B8<>""," + ","")&IF(B8="","",B8)&IF(B9<>""," + ","")&IF(B9="","",B9)&IF(B10<>""," + ","")&IF(B10="","",B10)&IF(B11<>""," + ","")&IF(B11="","",B11)&IF(B12<>""," + ","")&IF(B12="","",B12) -> DB Milchverarbeitung + DB Kalbinnen + DB Milchkälbermast + DB Schweinemast + DB Kartoffel Ab-Hof
AE23: Summe DB | AW23: Summe Energiebedarf | BO23: Summe Arbeitszeit pro Jahr | BS23: Excel: =SUMME(I6:I19)
AE24: Summe DB = | AG24: =IF(U6="","",U6)&IF(U7<>""," + ","")&IF(U7="","",U7)&IF(U8<>""," + ","")&IF(U8="","",U8)&IF(U9<>""," + ","")&IF(U9="","",U9)&IF(U10<>""," + ","")&IF(U10="","",U10)&IF(U11<>""," + ","")&IF(U11="","",U11)&IF(U12<>""," + ","")&IF(U12="","",U12) -> DB Milchverarbeitung + DB Kalbinnen + DB Milchkälbermast + DB Schweinemast + DB Kartoffel Ab-Hof | AW24: ∑ E-Bedarf = | AY24: =IF(AX6="","","Bedarf-"&AX6)&IF(AX7<>""," + ","")&IF(AX7="","","Bedarf-"&AX7)&IF(AX8<>""," + ","")&IF(AX8="","","Bedarf-"&AX8)&IF(AX9<>""," + ","")&IF(AX9="","","Bedarf-"&AX9)&IF(AX10<>""," + ","")&IF(AX10="","","Bedarf-"&AX10)&IF(AX11<>""," + ","")&IF(AX11="","","Bedarf-"&AX11)&IF(AX12<>""," + ","")&IF(AX12="","","Bedarf-"&AX12) -> Bedarf-Milchverarbeitung + Bedarf-Kalbinnen | BI24: Energie- und Arbeitszeitbilanz | BO24: ∑ AZ = | BQ24: =IF(BP5="","","AZ-"&BP5)&IF(BP6<>""," + ","")&IF(BP6="","","AZ-"&BP6)&IF(BP7<>""," + ","")&IF(BP7="","","AZ-"&BP7)&IF(BP8<>""," + ","")&IF(BP8="","","AZ-"&BP8)&IF(BP9<>""," + ","")&IF(BP9="","","AZ-"&BP9)&IF(BP10<>""," + ","")&IF(BP10="","","AZ-"&BP10)&IF(BP11<>""," + ","")&IF(BP11="","","AZ-"&BP11)&IF(BP12<>""," + ","AZ-"&BP12)&IF(BP12="","","AZ-"&BP12)&IF(BP13<>""," + ","")&IF(BP13="","","AZ-"&BP13)&IF(BP14<>""," + ","")&IF(BP14="","","AZ-"&BP14)&IF(BP15<>""," + ","")&IF(BP15="","","AZ-"&BP15)&IF(BP16<>""," + ","")&IF(BP16="","","AZ-"&BP16)&IF(BP17<>""," + ","")&IF(BP17="","","AZ-"&BP17)&IF(BP18<>""," + ","")&IF(BP18="","","AZ-"&BP18) -> AZ-Milchverarbeitung + AZ-Kalbinnen + AZ-Milchkälbermast + AZ-Schweinemast + AZ-Kartoffel Ab-Hof + AZ-Feldfutterbau + AZ-mehrschn. Dauergl. + AZ-einschn. Dauergl. + AZ-Sonstige Arbeiten
L25: Summe DB = | N25: =IF(E6="","",DOLLAR(E6,2)&" + ")&IF(E7="","",DOLLAR(E7,2)&" + ")&IF(E8="","",DOLLAR(E8,2)&" + ")&IF(E9="","",DOLLAR(E9,2)&" + ")&IF(E10="","",DOLLAR(E10,2)&" + ")&IF(E11="","",DOLLAR(E11,2)&" + ")&IF(E12="","",DOLLAR(E12,2))&" = "&DOLLAR(SUM(E6:E12),2) -> € 5 466,00 + € 443,00 + € 662,00 + € 255,00 + € 3 552,00 + = € 10 378,00 | BK25: Gesamt Akh | BL25: =SUM(BL6:BL19) -> 2508.3
AE27: Summe DB = | AG27: =IF(X6="","",DOLLAR(X6,2)&" + ")&IF(X7="","",DOLLAR(X7,2)&" + ")&IF(X8="","",DOLLAR(X8,2)&" + ")&IF(X9="","",DOLLAR(X9,2)&" + ")&IF(X10="","",DOLLAR(X10,2)&" + ")&IF(X11="","",DOLLAR(X11,2)&" + ")&IF(X12="","",DOLLAR(X12,2))&" = "&DOLLAR(SUM(X6:X12),2) -> € 5 466,00 + € 443,00 + € 662,00 + € 255,00 + € 3 552,00 + = € 10 378,00 | AW27: ∑ E-Bedarf = | AY27: =IF(AR6="","",FIXED(-AR6,0)&" + ")&IF(AR7="","",FIXED(-AR7,0)&" + ")&IF(AR8="","",FIXED(-AR8,0)&" + ")&IF(AR9="","",FIXED(-AR9,0)&" + ")&IF(AR10="","",FIXED(-AR10,0)&" + ")&IF(AR11="","",FIXED(-AR11,0)&" + ")&IF(AR12="","",FIXED(-AR12,0))&" = "&FIXED(-SUM(AR6:AR12),0) -> 60 105 + 28 296 + = 88 401
L28: Summe VK
L29: Summe VK = | N29: =IF(B13="","",B13)&IF(B14<>""," + ","")&IF(B14="","",B14)&IF(B15<>""," + ","")&IF(B15="","",B15)&IF(B16<>""," + ","")&IF(B16="","",B16)&IF(B17<>""," + ","")&IF(B17="","",B17)&IF(B18<>""," + ","")&IF(B18="","",B18)&IF(B19<>""," + ","")&IF(B19="","",B19) -> VK Feldfutterbau + VK mehrschn. Dauergl. + VK einschn. Dauergl. + VK Sonstige Arbeiten | BO29: ∑ AZ = | BQ29: =IF(BL6="","",FIXED(BL6,1)&" + ")&IF(BL7="","",FIXED(BL7,1)&" + ")&IF(BL8="","",FIXED(BL8,1)&" + ")&IF(BL9="","",FIXED(BL9,1)&" + ")&IF(BL10="","",FIXED(BL10,1)&" + ")&IF(BL11="","",FIXED(BL11,1)&" + ")&IF(BL12="","",FIXED(BL12,1))&IF(BL13="","",FIXED(BL13,1)&" + ")&IF(BL14="","",FIXED(BL14,1)&" + ")&IF(BL15="","",FIXED(BL15,1)&" + ")&IF(BL16="","",FIXED(BL16,1)&" + ")&IF(BL17="","",FIXED(BL17,1)&" + ")&IF(BL18="","",FIXED(BL18,1)&" + ")&IF(BL19="","",FIXED(BL19,1))&" = "&FIXED(SUM(BL6:BL19),1) -> 585,0 + 202,5 + 98,0 + 735,0 + 460,0 + 31,2 + 156,6 + 90,0 + 150,0 = 2 508,3
AE30: Summe VK | AW30: Summe Energieertrag
AE31: Summe VK = | AG31: =IF(U13="","",U13)&IF(U14<>""," + ","")&IF(U14="","",U14)&IF(U15<>""," + ","")&IF(U15="","",U15)&IF(U16<>""," + ","")&IF(U16="","",U16)&IF(U17<>""," + ","")&IF(U17="","",U17)&IF(U18<>""," + ","")&IF(U18="","",U18)&IF(U19<>""," + ","")&IF(U19="","",U19) -> VK Feldfutterbau + VK mehrschn. Dauergl. + VK einschn. Dauergl. + VK Sonstige Arbeiten | AW31: ∑ E-Ergtrag = | AY31: =IF(AX13="","","Ertrag-"&AX13)&IF(AX14<>""," + ","")&IF(AX14="","","Ertrag-"&AX14)&IF(AX15<>""," + ","")&IF(AX15="","","Ertrag-"&AX15)&IF(AX16<>""," + ","")&IF(AX16="","","Ertrag-"&AX16)&IF(AX17<>""," + ","")&IF(AX17="","","Ertrag-"&AX17)&IF(AX18<>""," + ","")&IF(AX18="","","Ertrag-"&AX18)&IF(AX19<>""," + ","")&IF(AX19="","","Ertrag-"&AX19) -> Ertrag-Feldfutterbau + Ertrag-mehrschn. Dauergl. + Ertrag-einschn. Dauergl.
L32: Summe VK = | N32: =IF(E13="","",DOLLAR(-E13,2)&" + ")&IF(E14="","",DOLLAR(-E14,2)&" + ")&IF(E15="","",DOLLAR(-E15,2)&" + ")&IF(E16="","",DOLLAR(-E16,2)&" + ")&IF(E17="","",DOLLAR(-E17,2)&" + ")&IF(E18="","",DOLLAR(-E18,2)&" + ")&IF(E19="","",DOLLAR(-E19,2))&" = "&DOLLAR(-SUM(E13:E19),2) -> € 522,50 + € 1 626,00 + € 1 084,00 + = € 3 232,50
AE34: Summe VK = | AG34: =IF(X13="","",DOLLAR(-X13,2)&" + ")&IF(X14="","",DOLLAR(-X14,2)&" + ")&IF(X15="","",DOLLAR(-X15,2)&" + ")&IF(X16="","",DOLLAR(-X16,2)&" + ")&IF(X17="","",DOLLAR(-X17,2)&" + ")&IF(X18="","",DOLLAR(-X18,2)&" + ")&IF(X19="","",DOLLAR(-X19,2))&" = "&DOLLAR(-SUM(X13:X19),2) -> € 522,50 + € 1 626,00 + € 1 084,00 + = € 3 232,50 | AW34: ∑ E-Ergtrag = | AY34: =IF(AR13="","",FIXED(AR13,0)&" + ")&IF(AR14="","",FIXED(AR14,0)&" + ")&IF(AR15="","",FIXED(AR15,0)&" + ")&IF(AR16="","",FIXED(AR16,0)&" + ")&IF(AR17="","",FIXED(AR17,0)&" + ")&IF(AR18="","",FIXED(AR18,0)&" + ")&IF(AR19="","",FIXED(AR19,0))&" = "&FIXED(SUM(AR13:AR19),0) -> 26 550 + 101 790 + 36 740 + = 165 080
L35: Gesamt-DB | P35: Excel: =SUMME(E6:E19) | AQ35: Energie- und Arbeitszeitbilanz
L36: Gesamt-DB = | N36: =L21&" - "&L28 -> Summe DB - Summe VK | AQ36: +/- Ges. Energie | AR36: =SUM(AR6:AR19) -> 76679
L37: Gesamt-DB = | N37: =DOLLAR(SUM(E6:E12),2)&" - "&DOLLAR(-SUM(E13:E19),2)&" = "&DOLLAR(SUM(E6:E19,2)) -> € 10 378,00 - € 3 232,50 = € 7 147,50 | AE37: Gesamt-DB | AI37: Excel: =SUMME(E6:E19) | AW37: +/- Gesamt-Energie | BA37: Excel: =SUMME(G6:G19)
AE38: Gesamt-DB = | AG38: =AE23&" - "&AE30 -> Summe DB - Summe VK | AW38: Ges-Energie = | AY38: =AW23&" - "&AW30 -> Summe Energiebedarf - Summe Energieertrag
AE39: Gesamt-DB = | AG39: =DOLLAR(SUM(X6:X12),2)&" - "&DOLLAR(-SUM(X13:X19),2)&" = "&DOLLAR(SUM(X6:X19,2)) -> € 10 378,00 - € 3 232,50 = € 7 147,50 | AW39: Ges-Energie = | AY39: =FIXED(SUM(AR13:AR19),0)&" - "&FIXED(-SUM(AR6:AR11),0)&" = "&FIXED(SUM(AR6:AR19,0)) -> 165 080 - 88 401 = 76 679,00
B40: Produktions-verfahren | C40: Anzahl: ha, Stk. | D40: Deckungsbeitrag (+) / Variable Kosten (-) | F40: Ertrag (+) / Bedarf (-) an KStE oder MJ NEL | H40: Jahresarbeits- zeit in Akh | L40: Energieertrag / Energiebedarf gesamt
B41: verfahren | C41: ha;Stk | D41: bzw. VK (-) | F41: (-) an KStE oder NEL | H41: bedarf in AKh | L41: Bedarf ges. = Bedarf je Stk * Stk. | P41: … oder: Bedarf gesamt = Bedarf je ha * ha
D42: je ha; Stk. | E42: gesamt | F42: je ha; Stk. | G42: gesamt | H42: je ha; Stk | I42: gesamt | L42: Ertrag ges. = Ertrag je ha * ha
B43: =IF(Dateneingabe!D11="","",Dateneingabe!B11&" "&Dateneingabe!D11) -> DB Milchverarbeitung | C43: =IF(Dateneingabe!G11="","",Dateneingabe!G11) -> 3 | F43: =IF(Dateneingabe!L11="","",Dateneingabe!L11) -> 20035 | G43: =IF(OR(F43="",$C43=""),"",-F43*$C43) -> -60105 | L43: Bsp.: | M43: =IF(OR(B43="",F43=""),"",MID(B43,4,20)) -> Milchverarbeitung | O43: =IF(OR(C43="",F43=""),"","Bedarf ges. = "&FIXED(C43,2)&" * "&FIXED(-F43,2)&" = "&FIXED(-C43*F43,2)) -> Bedarf ges. = 3,00 * -20 035,00 = -60 105,00
B44: =IF(Dateneingabe!D13="","",Dateneingabe!B13&" "&Dateneingabe!D13) -> DB Kalbinnen | C44: =IF(Dateneingabe!G13="","",Dateneingabe!G13) -> 1 | F44: =IF(Dateneingabe!L13="","",Dateneingabe!L13) -> 28296 | G44: =IF(OR(F44="",$C44=""),"",-F44*$C44) -> -28296 | M44: Kalbinnen | O44: Bedarf ges. = 1,00 * -28 296,00 = -28 296,00
B45: =IF(Dateneingabe!D15="","",Dateneingabe!B15&" "&Dateneingabe!D15) -> DB Milchkälbermast | C45: =IF(Dateneingabe!G15="","",Dateneingabe!G15) -> 2 | F45: =IF(Dateneingabe!L15="","",Dateneingabe!L15) -> 
B46: =IF(Dateneingabe!D17="","",Dateneingabe!B17&" "&Dateneingabe!D17) -> DB Schweinemast | C46: =IF(Dateneingabe!G17="","",Dateneingabe!G17) -> 15 | F46: =IF(Dateneingabe!L17="","",Dateneingabe!L17) -> 
B47: =IF(Dateneingabe!D19="","",Dateneingabe!B19&" "&Dateneingabe!D19) -> DB Kartoffel Ab-Hof | C47: =IF(Dateneingabe!G19="","",Dateneingabe!G19) -> 2 | F47: =IF(Dateneingabe!L19="","",Dateneingabe!L19) -> 
B48: =IF(Dateneingabe!D21="","",Dateneingabe!B21&" "&Dateneingabe!D21) ->  | C48: =IF(Dateneingabe!G21="","",Dateneingabe!G21) ->  | F48: =IF(Dateneingabe!L21="","",Dateneingabe!L21) -> 
B49: =IF(Dateneingabe!D23="","",Dateneingabe!B23&" "&Dateneingabe!D23) ->  | C49: =IF(Dateneingabe!G23="","",Dateneingabe!G23) ->  | F49: =IF(Dateneingabe!L23="","",Dateneingabe!L23) -> 
B50: =IF(Dateneingabe!D25="","",Dateneingabe!B25&" "&Dateneingabe!D25) -> VK Feldfutterbau | C50: =IF(Dateneingabe!G25="","",Dateneingabe!G25) -> 0.5 | F50: =IF(Dateneingabe!L25="","",Dateneingabe!L25) -> 53100 | G50: =IF(OR(F50="",$C50=""),"",F50*$C50) -> 26550 | M50: Feldfutterbau | O50: =IF(OR(C50="",F50=""),"","Ertrag ges. = "&FIXED(C50,2)&" * "&FIXED(F50,2)&" = "&FIXED(C50*F50,2)) -> Ertrag ges. = 0,50 * 53 100,00 = 26 550,00
B51: =IF(Dateneingabe!D27="","",Dateneingabe!B27&" "&Dateneingabe!D27) -> VK mehrschn. Dauergl. | C51: =IF(Dateneingabe!G27="","",Dateneingabe!G27) -> 3 | F51: =IF(Dateneingabe!L27="","",Dateneingabe!L27) -> 33930 | G51: 101790 | M51: mehrschn. Dauergl. | O51: Ertrag ges. = 3,00 * 33 930,00 = 101 790,00
B52: =IF(Dateneingabe!D29="","",Dateneingabe!B29&" "&Dateneingabe!D29) -> VK einschn. Dauergl. | C52: =IF(Dateneingabe!G29="","",Dateneingabe!G29) -> 2 | F52: =IF(Dateneingabe!L29="","",Dateneingabe!L29) -> 18370 | G52: 36740 | M52: einschn. Dauergl. | O52: Ertrag ges. = 2,00 * 18 370,00 = 36 740,00
B53: =IF(Dateneingabe!D31="","",Dateneingabe!B31&" "&Dateneingabe!D31) ->  | C53: =IF(Dateneingabe!G31="","",Dateneingabe!G31) ->  | F53: =IF(Dateneingabe!L31="","",Dateneingabe!L31) -> 
B54: =IF(Dateneingabe!D33="","",Dateneingabe!B33&" "&Dateneingabe!D33) ->  | C54: =IF(Dateneingabe!G33="","",Dateneingabe!G33) ->  | F54: =IF(Dateneingabe!L33="","",Dateneingabe!L33) -> 
B55: =IF(Dateneingabe!D35="","",Dateneingabe!B35&" "&Dateneingabe!D35) ->  | C55: =IF(Dateneingabe!G35="","",Dateneingabe!G35) ->  | F55: =IF(Dateneingabe!L35="","",Dateneingabe!L35) -> 
B56: =IF(Dateneingabe!D37="","",Dateneingabe!B37&" "&Dateneingabe!D37) -> VK Sonstige Arbeiten | C56: =IF(Dateneingabe!G37="","",Dateneingabe!G37) ->  | F56: =IF(Dateneingabe!L37="","",Dateneingabe!L37) -> 
B57: Gesamt DB
L58: Summe Energiebedarf
L59: ∑ E-Bedarf = | N59: =IF(M43="","","Bedarf-"&M43)&IF(M44<>""," + ","")&IF(M44="","","Bedarf-"&M44)&IF(M45<>""," + ","")&IF(M45="","","Bedarf-"&M45)&IF(M46<>""," + ","")&IF(M46="","","Bedarf-"&M46)&IF(M47<>""," + ","")&IF(M47="","","Bedarf-"&M47)&IF(M48<>""," + ","")&IF(M48="","","Bedarf-"&M48)&IF(M49<>""," + ","")&IF(M49="","","Bedarf-"&M49) -> Bedarf-Milchverarbeitung + Bedarf-Kalbinnen
L62: ∑ E-Bedarf = | N62: =IF(G43="","",FIXED(-G43,0)&" + ")&IF(G44="","",FIXED(-G44,0)&" + ")&IF(G45="","",FIXED(-G45,0)&" + ")&IF(G46="","",FIXED(-G46,0)&" + ")&IF(G47="","",FIXED(-G47,0)&" + ")&IF(G48="","",FIXED(-G48,0)&" + ")&IF(G49="","",FIXED(-G49,0))&" = "&FIXED(-SUM(G43:G49),0) -> 60 105 + 28 296 + = 88 401
L65: Summe Energieertrag
L66: ∑ E-Ergtrag = | N66: =IF(M50="","","Ertrag-"&M50)&IF(M51<>""," + ","")&IF(M51="","","Ertrag-"&M51)&IF(M52<>""," + ","")&IF(M52="","","Ertrag-"&M52)&IF(M53<>""," + ","")&IF(M53="","","Ertrag-"&M53)&IF(M54<>""," + ","")&IF(M54="","","Ertrag-"&M54)&IF(M55<>""," + ","")&IF(M55="","","Ertrag-"&M55)&IF(M56<>""," + ","")&IF(M56="","","Ertrag-"&M56) -> Ertrag-Feldfutterbau + Ertrag-mehrschn. Dauergl. + Ertrag-einschn. Dauergl.
L69: ∑ E-Ergtrag = | N69: =IF(G50="","",FIXED(G50,0)&" + ")&IF(G51="","",FIXED(G51,0)&" + ")&IF(G52="","",FIXED(G52,0)&" + ")&IF(G53="","",FIXED(G53,0)&" + ")&IF(G54="","",FIXED(G54,0)&" + ")&IF(G55="","",FIXED(G55,0)&" + ")&IF(G56="","",FIXED(G56,0))&" = "&FIXED(SUM(G50:G56),0) -> 26 550 + 101 790 + 36 740 + = 165 080
F70: Energie- und Arbeitszeitbilanz
F71: +/- Ges. Energie | G71: =SUM(G43:G56) -> 76679
L72: +/- Gesamt-Energie | P72: Excel: =SUMME(G6:G19)
L73: Ges-Energie = | N73: =L58&" - "&L65 -> Summe Energiebedarf - Summe Energieertrag
L74: Ges-Energie = | N74: =FIXED(SUM(G50:G56),0)&" - "&FIXED(-SUM(G43:G48),0)&" = "&FIXED(SUM(G43:G56,0)) -> 165 080 - 88 401 = 76 679,00
B77: Produktions-verfahren | C77: Anzahl: ha, Stk. | D77: Deckungsbeitrag (+) / Variable Kosten (-) | F77: Ertrag (+) / Bedarf (-) an KStE oder MJ NEL | H77: Jahresarbeits- zeit in Akh | L77: Arbeitszeit gesamt
B78: verfahren | C78: ha;Stk | D78: bzw. VK (-) | F78: (-) an KStE oder NEL | H78: bedarf in AKh | L78: AZ ges. = AZ je Stk * Stk. | P78: … oder: AZ ges. = AZ je ha * ha
D79: je ha; Stk. | E79: gesamt | F79: je ha; Stk. | G79: gesamt | H79: je ha; Stk | I79: gesamt | L79: Bsp.: | M79: =IF(B80="","",MID(B80,4,20)) -> Milchverarbeitung | O79: =IF(OR(C80="",H80=""),"","AZ ges. = "&FIXED(C80,2)&" * "&FIXED(H80,2)&" = "&FIXED(C80*H80,2)) -> AZ ges. = 3,00 * 195,00 = 585,00
B80: =IF(Dateneingabe!D11="","",Dateneingabe!B11&" "&Dateneingabe!D11) -> DB Milchverarbeitung | C80: =IF(Dateneingabe!G11="","",Dateneingabe!G11) -> 3 | H80: =IF(Dateneingabe!N11="","",Dateneingabe!N11) -> 195 | I80: =IF(AND(H80="",$C80=""),"",IF(AND(H80<>"",$C80=""),H80,H80*$C80)) -> 585 | M80: Kalbinnen | O80: AZ ges. = 1,00 * 202,50 = 202,50
B81: =IF(Dateneingabe!D13="","",Dateneingabe!B13&" "&Dateneingabe!D13) -> DB Kalbinnen | C81: =IF(Dateneingabe!G13="","",Dateneingabe!G13) -> 1 | H81: =IF(Dateneingabe!N13="","",Dateneingabe!N13) -> 202.5 | I81: 202.5 | M81: Milchkälbermast | O81: AZ ges. = 2,00 * 49,00 = 98,00
B82: =IF(Dateneingabe!D15="","",Dateneingabe!B15&" "&Dateneingabe!D15) -> DB Milchkälbermast | C82: =IF(Dateneingabe!G15="","",Dateneingabe!G15) -> 2 | H82: =IF(Dateneingabe!N15="","",Dateneingabe!N15) -> 49 | I82: 98 | M82: Schweinemast | O82: AZ ges. = 15,00 * 49,00 = 735,00
B83: =IF(Dateneingabe!D17="","",Dateneingabe!B17&" "&Dateneingabe!D17) -> DB Schweinemast | C83: =IF(Dateneingabe!G17="","",Dateneingabe!G17) -> 15 | H83: =IF(Dateneingabe!N17="","",Dateneingabe!N17) -> 49 | I83: 735 | M83: Kartoffel Ab-Hof | O83: AZ ges. = 2,00 * 230,00 = 460,00
B84: =IF(Dateneingabe!D19="","",Dateneingabe!B19&" "&Dateneingabe!D19) -> DB Kartoffel Ab-Hof | C84: =IF(Dateneingabe!G19="","",Dateneingabe!G19) -> 2 | H84: =IF(Dateneingabe!N19="","",Dateneingabe!N19) -> 230 | I84: 460
B85: =IF(Dateneingabe!D21="","",Dateneingabe!B21&" "&Dateneingabe!D21) ->  | C85: =IF(Dateneingabe!G21="","",Dateneingabe!G21) ->  | H85: =IF(Dateneingabe!N21="","",Dateneingabe!N21) -> 
B86: =IF(Dateneingabe!D23="","",Dateneingabe!B23&" "&Dateneingabe!D23) ->  | C86: =IF(Dateneingabe!G23="","",Dateneingabe!G23) ->  | H86: =IF(Dateneingabe!N23="","",Dateneingabe!N23) ->  | M86: Feldfutterbau | O86: AZ ges. = 0,50 * 62,40 = 31,20
B87: =IF(Dateneingabe!D25="","",Dateneingabe!B25&" "&Dateneingabe!D25) -> VK Feldfutterbau | C87: =IF(Dateneingabe!G25="","",Dateneingabe!G25) -> 0.5 | H87: =IF(Dateneingabe!N25="","",Dateneingabe!N25) -> 62.4 | I87: 31.2 | M87: mehrschn. Dauergl. | O87: AZ ges. = 3,00 * 52,20 = 156,60
B88: =IF(Dateneingabe!D27="","",Dateneingabe!B27&" "&Dateneingabe!D27) -> VK mehrschn. Dauergl. | C88: =IF(Dateneingabe!G27="","",Dateneingabe!G27) -> 3 | H88: =IF(Dateneingabe!N27="","",Dateneingabe!N27) -> 52.2 | I88: 156.6 | M88: einschn. Dauergl. | O88: AZ ges. = 2,00 * 45,00 = 90,00
B89: =IF(Dateneingabe!D29="","",Dateneingabe!B29&" "&Dateneingabe!D29) -> VK einschn. Dauergl. | C89: =IF(Dateneingabe!G29="","",Dateneingabe!G29) -> 2 | H89: =IF(Dateneingabe!N29="","",Dateneingabe!N29) -> 45 | I89: 90
B90: =IF(Dateneingabe!D31="","",Dateneingabe!B31&" "&Dateneingabe!D31) ->  | C90: =IF(Dateneingabe!G31="","",Dateneingabe!G31) ->  | H90: =IF(Dateneingabe!N31="","",Dateneingabe!N31) -> 
B91: =IF(Dateneingabe!D33="","",Dateneingabe!B33&" "&Dateneingabe!D33) ->  | C91: =IF(Dateneingabe!G33="","",Dateneingabe!G33) ->  | H91: =IF(Dateneingabe!N33="","",Dateneingabe!N33) -> 
B92: =IF(Dateneingabe!D35="","",Dateneingabe!B35&" "&Dateneingabe!D35) ->  | C92: =IF(Dateneingabe!G35="","",Dateneingabe!G35) ->  | H92: =IF(Dateneingabe!N35="","",Dateneingabe!N35) ->  | M92: Sonstige Arbeiten
B93: =IF(Dateneingabe!D37="","",Dateneingabe!B37&" "&Dateneingabe!D37) -> VK Sonstige Arbeiten | C93: =IF(Dateneingabe!G37="","",Dateneingabe!G37) ->  | H93: =IF(Dateneingabe!N37="","",Dateneingabe!N37) -> 150 | I93: =IF(AND(H93="",$C93=""),"",IF(AND(H93<>"",$C93=""),H93,H93*$C93)) -> 150
B94: Gesa"Bedarf-"Mt DB | L94: Summe Arbeitszeit pro Jahr | P94: Excel: =SUMME(I6:I19)
L95: ∑ AZ = | N95: =IF(M79="","","AZ-"&M79)&IF(M80<>""," + ","")&IF(M80="","","AZ-"&M80)&IF(M81<>""," + ","")&IF(M81="","","AZ-"&M81)&IF(M82<>""," + ","")&IF(M82="","","AZ-"&M82)&IF(M83<>""," + ","")&IF(M83="","","AZ-"&M83)&IF(M84<>""," + ","")&IF(M84="","","AZ-"&M84)&IF(M85<>""," + ","")&IF(M85="","","AZ-"&M85)&IF(M86<>""," + ","AZ-"&M86)&IF(M86="","","AZ-"&M86)&IF(M87<>""," + ","")&IF(M87="","","AZ-"&M87)&IF(M88<>""," + ","")&IF(M88="","","AZ-"&M88)&IF(M89<>""," + ","")&IF(M89="","","AZ-"&M89)&IF(M90<>""," + ","")&IF(M90="","","AZ-"&M90)&IF(M91<>""," + ","")&IF(M91="","","AZ-"&M91)&IF(M92<>""," + ","")&IF(M92="","","AZ-"&M92) -> AZ-Milchverarbeitung + AZ-Kalbinnen + AZ-Milchkälbermast + AZ-Schweinemast + AZ-Kartoffel Ab-Hof + AZ-Feldfutterbau + AZ-mehrschn. Dauergl. + AZ-einschn. Dauergl. + AZ-Sonstige Arbeiten
F98: Energie- und Arbeitszeitbilanz
H99: Gesamt Akh | I99: =SUM(I80:I93) -> 2508.3
L100: ∑ AZ = | N100: =IF(I80="","",FIXED(I80,1)&" + ")&IF(I81="","",FIXED(I81,1)&" + ")&IF(I82="","",FIXED(I82,1)&" + ")&IF(I83="","",FIXED(I83,1)&" + ")&IF(I84="","",FIXED(I84,1)&" + ")&IF(I85="","",FIXED(I85,1)&" + ")&IF(I86="","",FIXED(I86,1))&IF(I87="","",FIXED(I87,1)&" + ")&IF(I88="","",FIXED(I88,1)&" + ")&IF(I89="","",FIXED(I89,1)&" + ")&IF(I90="","",FIXED(I90,1)&" + ")&IF(I91="","",FIXED(I91,1)&" + ")&IF(I92="","",FIXED(I92,1)&" + ")&IF(I93="","",FIXED(I93,1))&" = "&FIXED(SUM(I80:I93),1) -> 585,0 + 202,5 + 98,0 + 735,0 + 460,0 + 31,2 + 156,6 + 90,0 + 150,0 = 2 508,3
B107: Sonstige betriebliche Erträge + | F107: Energie- und Arbeitszeitbilanz
B108: =IF(Dateneingabe!B41="","",Dateneingabe!B41) -> Maschinenringtätigkeit | E108: =IF(Dateneingabe!G41="","",Dateneingabe!G41) -> 655 | F108: +/- Ges. Energie | G108: =G71 -> 76679 | H108: Gesamt Akh | I108: =I99 -> 2508.3
B109: =IF(Dateneingabe!B43="","",Dateneingabe!B43) ->  | E109: =IF(Dateneingabe!G43="","",Dateneingabe!G43) ->  | L109: Summe sonstiger Erträge | P109: Excel: =SUMME(E23:E25)
B110: =IF(Dateneingabe!B45="","",Dateneingabe!B45) ->  | E110: =IF(Dateneingabe!G45="","",Dateneingabe!G45) ->  | L110: ="∑ sonst. Erträge = "&IF(B108="","",B108)&IF(B109<>""," + ","")&IF(B109="","",B109)&IF(B110<>""," + ","")&IF(B110="","",B110) -> ∑ sonst. Erträge = Maschinenringtätigkeit
B111: Summe Sonstige Erträge | E111: =SUM(E108:E110) -> 655 | L111: ="∑ sonst. Erträge = "&IF(E108="","",E108)&IF(E109<>""," + ","")&IF(E109="","",E109)&IF(E110<>""," + ","")&IF(E110="","",E110)&" = "&DOLLAR(SUM(E108:E110),2) -> ∑ sonst. Erträge = 655 = € 655,00
B115: Förderungen | D115: + | F115: Kapitaldienstgrenze | L115: Vorläufige Kapitaldienstgrenze | P115: Excel: =SUMME(I29:I30)
B116: =IF(Dateneingabe!B48="","",Dateneingabe!B48) -> Ausgleichszulage | E116: =IF(Dateneingabe!G48="","",Dateneingabe!G48) -> 2900 | F116: Gesamteinkommen | I116: =IF(E130="","noch leer",E130) -> 23038.5 | L116: vorl. KDG = | N116: =IF(F116="","",F116)&IF(F117<>""," - ","")&IF(F117="","",F117)&IF(F118<>""," - ","")&IF(F118="","",F118) -> Gesamteinkommen - Lebenshaltungskosten - Kapitaldienst für bestehende Kredite
B117: =IF(Dateneingabe!B50="","",Dateneingabe!B50) -> GAP Prämien Bodennutzung | E117: 1540 | F117: Lebenshaltungskosten | I117: =IF(Dateneingabe!N41="","",Dateneingabe!N41) -> -16985
B118: =IF(Dateneingabe!B52="","",Dateneingabe!B52) -> Tierprämien | E118: =IF(Dateneingabe!G52="","",Dateneingabe!G52) -> 950 | F118: Kapitaldienst für bestehende Kredite | I118: =IF(Dateneingabe!N48="","",Dateneingabe!N48) -> -550 | J118: =-#REF! ->  | L118: =L116 -> vorl. KDG = | N118: =IF(I116="","",DOLLAR(I116,2))&IF(I117<>""," - ","")&IF(I117="","",DOLLAR(-I117,2)&IF(I118<>""," - ","")&IF(I118="","",DOLLAR(-I118,2))&" = "&DOLLAR(SUM(I116:I118),2)) -> € 23 038,50 - € 16 985,00 - € 550,00 = € 5 503,50
B119: =IF(Dateneingabe!B54="","",Dateneingabe!B54) -> ÖPUL | E119: =IF(Dateneingabe!G54="","",Dateneingabe!G54) -> 1280 | F119: Vorläufige Kapitaldienstgrenze | I119: =SUM(I116:I118) -> 5503.5
B120: =IF(Dateneingabe!B56="","",Dateneingabe!B56) ->  | E120: =IF(Dateneingabe!G56="","",Dateneingabe!G56) ->  | F120: Afa für Gebäude und Maschinen, die während der Kreditlaufzeit nicht erneuert werden müssen. | I120: =IF(Dateneingabe!N64="","",Dateneingabe!N64) -> 620 | L120: Kapitaldienstgrenze | P120: Excel: =SUMME(I29:I30)
B121: =IF(Dateneingabe!B58="","",Dateneingabe!B58) ->  | E121: =IF(Dateneingabe!G58="","",Dateneingabe!G58) ->  | L121: KDG = | N121: =IF(F119="","",F119)&IF(F120<>""," + ","")&IF(F120="","",F120) -> Vorläufige Kapitaldienstgrenze + Afa für Gebäude und Maschinen, die während der Kreditlaufzeit nicht erneuert werden müssen.
B122: SUMME FÖRDERUNGEN | E122: =SUM(E116:E119) -> 6670 | F122: Kapitaldienstgrenze | I122: =SUM(I119,I120) -> 6123.5
B124: GDB einschl. Förd. und sonst. Erträge | E124: =SUM(E20,E111,E122) -> 14470.5 | L124: =L121 -> KDG = | N124: =IF(I119="","",DOLLAR(I119,2))&IF(I120<>""," + ","")&IF(I120="","",DOLLAR(I120,2)&" = "&DOLLAR(SUM(I119:I120),2)) -> € 5 503,50 + € 620,00 = € 6 123,50
B125: Feste Kosten bei IST-Organisation | E125: =IF(Dateneingabe!G61="","",Dateneingabe!G61) -> -9452
B126: LANDWIRTSCHAFTLICHES EINKOMMEN - Gesamt | E126: =SUM(E124:E125) -> 5018.5 | L126: Summe Förderungen | P126: Excel: =SUMME(E29:E34)
B127: LANDWIRTSCHAFTLICHES EINKOMMEN - EK/Akh | E127: =E126/I108 -> 2.000757485 | L127: ∑ Förd. = | N127: =IF(B116="","",B116)&IF(B117<>""," + ","")&IF(B117="","",B117)&IF(B118<>""," + ","")&IF(B118="","",B118)&IF(B119<>""," + ","")&IF(B119="","",B119)&IF(B120<>""," + ","")&IF(B120="","",B120)&IF(B121<>""," + ","")&IF(B121="","",B121) -> Ausgleichszulage + GAP Prämien Bodennutzung + Tierprämien + ÖPUL
B128: SOZIALEINKOMMEN | E128: =IF(Dateneingabe!G64="","",Dateneingabe!G64) -> 4560
B129: NEBEEINKOMMEN | E129: =IF(Dateneingabe!G66="","",Dateneingabe!G66) -> 13460
B130: GESAMTEINKOMMEN | E130: =SUM(E126,E128:E129) -> 23038.5 | L130: =L127 -> ∑ Förd. = | N130: =IF(E116="","",DOLLAR(E116,2))&IF(E117<>""," + ","")&IF(E117="","",DOLLAR(E117,2))&IF(E118<>""," + ","")&IF(E118="","",DOLLAR(E118,2))&IF(E119<>""," + ","")&IF(E119="","",DOLLAR(E119,2))&IF(E120<>""," + ","")&IF(E120="","",DOLLAR(E120,2))&IF(E121<>""," + ","")&IF(E121="","",DOLLAR(E121,2))&" = "&DOLLAR(SUM(E116:E121),2) -> € 2 900,00 + € 1 540,00 + € 950,00 + € 1 280,00 = € 6 670,00
L133: GDB einschl. Förd. Und sonst. Erträge | P133: Excel: =SUMME(E20;E26;E35)
L134: GDB i.F.u.s.E. = | N134: =IF(B20="","",B20)&IF(B111<>""," + ","")&IF(B111="","",B111)&IF(B122<>""," + ","")&IF(B122="","",B122) -> Gesamt DB + Summe Sonstige Erträge + SUMME FÖRDERUNGEN
L136: =L134 -> GDB i.F.u.s.E. = | N136: =IF(E20="","",DOLLAR(E20,2))&IF(E111<>""," + ","")&IF(E111="","",DOLLAR(E111,2)&IF(E122<>""," + ","")&IF(E122="","",DOLLAR(E122,2))&" = "&DOLLAR(SUM(E20,E111,E122),2)) -> € 7 145,50 + € 655,00 + € 6 670,00 = € 14 470,50
L138: Landwirtschaftliches Einkommen - Gesamt | P138: Excel: =SUMME(E37:E38)
L139: Lw EK Ges. = | N139: =IF(B124="","",B124)&IF(B125<>""," - ","")&IF(B125="","",B125) -> GDB einschl. Förd. und sonst. Erträge - Feste Kosten bei IST-Organisation
L141: =L139 -> Lw EK Ges. = | N141: =IF(E124="","",DOLLAR(E124,2))&IF(E125<>""," - ","")&IF(E125="","",DOLLAR(-E125,2)&" = "&DOLLAR(SUM(E124,E125),2)) -> € 14 470,50 - € 9 452,00 = € 5 018,50
L143: Landwirtschaftliches Einkommen/Akh | P143: Excel: =SUMME(E39/I23)
L144: Lw EK/AKh = | N144: =MID(L139,1,10)& " : Akh" -> Lw EK Ges. : Akh
L145: =L144 -> Lw EK/AKh = | N145: =IF(E126="","",DOLLAR(E126,2))&IF(I108<>""," : ","")&IF(I108="","",FIXED(I108,2)&" AKh = "&DOLLAR(E126/I108,2)) -> € 5 018,50 : 2 508,30 AKh = € 2,00
L147: Gesamteinkommen | P147: Excel: =SUMME(E39;E41:E42)
L148: Ges-EK = | N148: =IF(B126="","",MID(B126,1,30))&IF(B128<>""," + ","")&IF(B128="","",B128)&IF(B129<>""," + ","")&IF(B129="","",B129) -> LANDWIRTSCHAFTLICHES EINKOMMEN + SOZIALEINKOMMEN + NEBEEINKOMMEN
L150: =L148 -> Ges-EK = | N150: =IF(E126="","",DOLLAR(E126,2))&IF(E128<>""," + ","")&IF(E128="","",DOLLAR(E128,2)&IF(E129<>""," + ","")&IF(E129="","",DOLLAR(E129,2)&" = "&DOLLAR(SUM(E126,E128,E129),2))) -> € 5 018,50 + € 4 560,00 + € 13 460,00 = € 23 038,50
